Workbook

Sheet Sheet3 (hidden)
A1: Trait | B1: Marker | C1: Chr | D1: Pos | E1: p | H1: In plants C18 PUFAs are substrates for the synthesis of jasmonate and other oxylipins that have roles in plant defense and development
A2: oleic-2c | B2: Bn-A01-p23330944 | C2: 1 | D2: 19,203,801 | E2: 2.50E-04 | F2: =-LOG(E2) -> 3.601330989 | H2: BnaA01g27470D | I2: 19,201,662 | J2: 19,204,005 | K2: ubiquitin-conjugating enzyme e2 32-like | L2: AT3G17000 | M2: UBC32 | N2: protein ubiquitination, ubiquitin-dependent protein catabolic process
A4: oleic-2c | B4: Bn-A01-p24696367 | C4: 1 | D4: 20,464,355 | E4: 3.32E-05 | F4: =-LOG(E4) -> 4.479319998 | G4: =I4-D4 -> 986 | H4: BnaA01g29560D | I4: 20,465,341 | J4: 20,467,569 | K4: aldolase-type tim barrel family protein | L4: AT3G14130 | M4: HAOX1 | N4: The protein is also active on 2-hydroxy fatty acids，defense response to bacterium, hydrogen peroxide biosynthetic process, oxidation-reduction process, oxidative photosynthetic carbon pathway
A8: oleic-1c | B8: Bn-A02-p9607756 | C8: 2 | D8: 6,411,341 | E8: 8.39E-05 | F8: =-LOG(E8) -> 4.076476216
A9: oleic-2c | B9: Bn-scaff_18360_1-p915562 | C9: 2 | D9: 19,044,017 | E9: 2.40E-04 | F9: =-LOG(E9) -> 3.619155874
A10: oleic-2c | B10: Bn-A08-p1584454 | C10: 2 | D10: 19,947,136 | E10: 5.79E-05 | F10: =-LOG(E10) -> 4.23712646
A11: oleic-2c | B11: Bn-A08-p1584455 | C11: 2 | D11: 19,947,136 | E11: 5.20E-05 | F11: =-LOG(E11) -> 4.283888096
A12: oleic-2c | B12: Bn-A02-p25615285 | C12: 2 | D12: 23,644,817 | E12: 7.33E-05 | F12: =-LOG(E12) -> 4.134653173
A16: oleic-3c | B16: Bn-A03-p2412263 | C16: 3 | D16: 1,971,697 | E16: 2.91E-04 | F16: =-LOG(E16) -> 3.53543594 | H16: BnaA03g04240D | I16: 1,970,795 | J16: 1,972,132 | K16: nac domain ipr003441 | L16: AT5G13180 | M16: ANAC083 | N16: leaf senescence, multicellular organism development, negative regulation of transcription, DNA-templated, response to abscisic acid, response to salt stress, transcription, DNA-templated, viral process, xylem development
A19: oleic-2c | B19: Bn-A06-p5274160 | C19: 4 | D19: 3,864,002 | E19: 8.90E-09 | F19: =-LOG(E19) -> 8.050444115
A20: oleic-2c | B20: Bn-A06-p5197898 | C20: 4 | D20: 4,027,813 | E20: 3.23E-09 | F20: =-LOG(E20) -> 8.491322175
A23: oleic-2c | B23: Bn-A04-p16137916 | C23: 4 | D23: 16,333,557 | E23: 2.43E-04 | F23: =-LOG(E23) -> 3.614500973
A24: oleic-2c | B24: Bn-A04-p16553214 | C24: 4 | D24: 16,711,259 | E24: 5.23E-05 | F24: =-LOG(E24) -> 4.281249265 | G24: =I24-D24 -> 1,943 | H24: BnaA04g22070D | I24: 16,713,202 | J24: 16,714,313 | K24: lipid transfer protein | L24: AT2G38540 | M24: ATLTP1 | N24: cell wall organization, lipid transport
A27: oleic-1c | B27: Bn-A05-p5264904 | C27: 5 | D27: 5,052,125 | E27: 2.80E-04 | F27: =-LOG(E27) -> 3.553229905 | G27: =I27-D27 -> 142 | H27: BnaA05g09130D | I27: 5,052,267 | J27: 5,054,464 | K27: cytochrome p450 79c2 | L27: AT1G58260 | M27: CYP79C2 | N27: glucosinolate biosynthetic process, oxidation-reduction process
A30: oleic-2c | B30: Bn-A06-p2778072 | C30: 6 | D30: 2,690,612 | E30: 1.25E-04 | F30: =-LOG(E30) -> 3.902916304 | H30: BnaA06g04550D | I30: 2,686,874 | J30: 2,694,062 | K30: alpha carbonic anhydrase 7 | L30: AT1G08080
A31: oleic-2c | B31: Bn-A06-p2778829 | C31: 6 | D31: 2,691,369 | E31: 1.25E-04 | F31: 3.902916304 | H31: BnaA06g04550D | I31: 2,686,874 | J31: 2,694,062 | K31: alpha carbonic anhydrase 7 | L31: AT1G08080
A32: oleic-2c | B32: Bn-A06-p2778837 | C32: 6 | D32: 2,691,377 | E32: 1.25E-04 | F32: 3.902916304 | H32: BnaA06g04550D | I32: 2,686,874 | J32: 2,694,062 | K32: alpha carbonic anhydrase 7 | L32: AT1G08080
A35: oleic-2c | B35: Bn-A06-p8992364 | C35: 6 | D35: 8,465,994 | E35: 2.24E-05 | F35: 4.649751982 | G35: =I35-D35 -> 142 | H35: BnaA06g15470D | I35: 8,466,136 | J35: 8,472,475 | K35: p-loop containing nucleoside triphosphate hydrolases superfamily protein isoform 1 | L35: AT1G21730 | M35: KIN7.1 | N35: microtubule-based movement
A36: oleic-3c | B36: Bn-A06-p21826830 | C36: 6 | D36: 20,843,498 | E36: 2.19E-04 | F36: 3.66036971 | G36: =I36-D36 -> 146 | H36: BnaA06g30850D | I36: 20,843,644 | J36: 20,844,185 | K36: def2_rapsa ame: full=defensin-like protein 2 ame: full=cysteine-rich antifungal protein 2 short=afp2 short=rafp2 flags: precursor | L36: AT5G44420 | M36: LCR77 | N36: defense response, defense response to fungus, jasmonic acid and ethylene-dependent systemic resistance, killing of cells of other organism, response to ethylene, response to insect, response to jasmonic acid
A45: oleic-2c | B45: Bn-scaff_17799_1-p1999577 | C45: 7 | D45: 22,134,709 | E45: 2.39E-06 | F45: 5.621656616 | G45: =I45-D45 -> 491 | H45: BnaA07g31850D | I45: 22,135,200 | J45: 22,135,505 | K45: betaine-aldehyde dehydrogenase | L45: AT1G74920 | M45: ALDH10A8 | N45: response to salt stress, response to water deprivation
A48: oleic-2c | B48: Bn-A08-p12556455 | C48: 8 | D48: 10,335,313 | E48: 7.16E-11 | F48: 10.14502026 | I48: 10,334,357 | J48: 10,336,117 | K48: udp-glucosyl transferase 73b5 | L48: AT4G34131 | M48: UGT73B3 | N48: defense response, metabolic process, response to other organism
A49: oleic-3c | B49: Bn-A08-p12556455 | C49: 8 | D49: 10,335,313 | E49: 7.99E-06 | F49: 5.09755107 | H49: BnaA08g11390D
A50: oleic-2c | B50: Bn-A08-p12699181 | C50: 8 | D50: 10,374,054 | E50: 6.15E-05 | F50: 4.210856623 | G50: =I50-D50 -> 1,841 | H50: BnaA08g11430D | I50: 10,375,895 | J50: 10,378,907 | K50: glycosyl hydrolase family 10 protein | L50: AT4G33860 | N50: hydrolase activity, hydrolyzing O-glycosyl compounds
A51: oleic-2c | B51: Bn-A08-p12752628 | C51: 8 | D51: 10,449,878 | E51: 7.24E-12 | F51: 11.14012349 | H51: BnaA08g11500D | I51: 10,446,420 | J51: 10,450,421 | K51: protein executer chloroplastic-like | L51: AT4G33630 | M51: EX1 | N51: response to singlet oxygen, singlet oxygen-mediated programmed cell death
A52: oleic-3c | B52: Bn-A08-p12752628 | C52: 8 | D52: 10,449,878 | E52: 4.00E-06 | F52: 5.397603561 | H52: BnaA08g11500D | I52: 10,446,420 | J52: 10,450,421 | K52: protein executer chloroplastic-like | L52: AT4G33630 | M52: EX1 | N52: response to singlet oxygen, singlet oxygen-mediated programmed cell death
A53: oleic-2c | B53: Bn-A08-p12781426 | C53: 8 | D53: 10,473,953 | E53: 6.21E-12 | F53: 11.20672661 | H53: BnaA08g11570D | I53: 10,472,169 | J53: 10,475,063 | K53: pre-mrna-processing factor 6-like | L53: At4g03430 | M53: STA1 | N53: RNA-directed DNA methylation, mRNA splicing, via spliceosome, positive regulation of miRNA metabolic process, positive regulation of primary miRNA processing, response to cold, seed germination, spliceosomal tri-snRNP complex assembly
A54: oleic-3c | B54: Bn-A08-p12781426 | C54: 8 | D54: 10,473,953 | E54: 2.01E-06 | F54: 5.696091506 | H54: BnaA08g11570D | I54: 10,472,169 | J54: 10,475,063 | K54: pre-mrna-processing factor 6-like | L54: At4g03430 | M54: STA1 | N54: RNA-directed DNA methylation, mRNA splicing, via spliceosome, positive regulation of miRNA metabolic process, positive regulation of primary miRNA processing, response to cold, seed germination, spliceosomal tri-snRNP complex assembly
A55: oleic-2c | B55: Bn-A08-p12794893 | C55: 8 | D55: 10,478,871 | E55: 6.55E-12 | F55: 11.183646 | G55: =I55-D55 -> 506 | H55: BnaA08g11580D | I55: 10,479,377 | J55: 10,480,929 | K55: metal-transporting p-type atpase | L55: AT4G33519 | M55: ATHMAC5 | N55: photosynthetic electron transport chain
A56: oleic-3c | B56: Bn-A08-p12794893 | C56: 8 | D56: 10,478,871 | E56: 3.53E-06 | F56: 5.452385263 | G56: =I56-D56 -> 506 | H56: BnaA08g11580D | I56: 10,479,377 | J56: 10,480,929 | K56: metal-transporting p-type atpase | L56: AT4G33519 | M56: ATHMAC5 | N56: photosynthetic electron transport chain
A57: oleic-2c | B57: Bn-A08-p12797532 | C57: 8 | D57: 10,481,493 | E57: 1.10E-12 | F57: 11.9595559 | I57: =J56-I56 -> 1,552
A58: oleic-3c | B58: Bn-A08-p12797532 | C58: 8 | D58: 10,481,493 | E58: 3.43E-06 | F58: 5.464123834 | H58: 506
A59: oleic-2c | B59: Bn-A08-p12599446 | C59: 8 | D59: 10,515,602 | E59: 5.77E-26 | F59: 25.2387113 | H59: BnaA08g11650D | I59: 10,512,857 | J59: 10,515,956 | K59: methylcrotonoyl- carboxylase beta mitochondrial-like | L59: AT4G34030 | M59: MCCB | N59: leucine catabolic process，methylcrotonoyl-CoA carboxylase activity
A60: oleic-3c | B60: Bn-A08-p12599446 | C60: 8 | D60: 10,515,602 | E60: 1.78E-10 | F60: 9.750459235
A61: oleic-2c | B61: Bn-A08-p12814556 | C61: 8 | D61: 10,579,999 | E61: 1.27E-30 | F61: 29.89756629
A62: oleic-3c | B62: Bn-A08-p12814556 | C62: 8 | D62: 10,579,999 | E62: 8.78E-10 | F62: 9.05665885
A63: oleic-2c | B63: Bn-A08-p12820786 | C63: 8 | D63: 10,587,676 | E63: 1.95E-28 | F63: 27.70905322 | G63: =I63-D63 -> 1,062 | H63: BnaA08g11790D | I63: 10,588,738 | J63: 10,592,405 | K63: at4g33380 f17m5_140 | L63: AT4G33400 | N63: N-terminal protein myristoylation
A64: oleic-3c | B64: Bn-A08-p12820786 | C64: 8 | D64: 10,587,676 | E64: 2.25E-11 | F64: 10.6474509
A65: oleic-2c | B65: Bn-A08-p12940197 | C65: 8 | D65: 10,716,400 | E65: 2.02E-07 | F65: 6.694584136 | G65: =I65-D65 -> 1,851 | H65: BnaA08g11980D | I65: 10,718,251 | J65: 10,723,616 | K65: homeobox-leucine zipper protein athb-8 | L65: AT4G32880 | M65: ATHB-8 | N65: lipid binding，cell differentiation, meristem initiation, positive regulation of cell differentiation, positive regulation of cell proliferation, primary shoot apical meristem specification, procambium histogenesis, regulation of transcription, DNA-templated, response to auxin, transcription, DNA-templated, xylem development
A66: oleic-3c | B66: Bn-A08-p12940197 | C66: 8 | D66: 10,716,400 | E66: 9.19E-05 | F66: 4.036457713
A67: oleic-2c | B67: Bn-Scaffold000320-p11480 | C67: 8 | D67: 10,821,343 | E67: 7.12E-05 | F67: 4.147818992 | H67: BnaA08g12070D | I67: 10,819,567 | J67: 10,831,638 | K67: dna polymerase theta-like | L67: AT4G32700 | M67: POLQ | N67: photomorphogenesis
A68: oleic-2c | B68: Bn-scaff_17821_1-p119310 | C68: 8 | D68: 10,883,842 | E68: 1.40E-04 | F68: 3.853406898 | H68: BnaA08g12170D | I68: 10,883,521 | J68: 10,885,352 | K68: f0 v0 subunit c protein | L68: AT4G32530 | N68: ATPase activity, proton transmembrane transporter activity, proton-transporting ATPase activity, rotational mechanism
A69: oleic-2c | B69: Bn-A08-p15620471 | C69: 8 | D69: 13,151,027 | E69: 2.20E-05 | F69: 4.656670197 | G69: =I69-D69 -> 126 | H69: BnaA08g15880D | I69: 13,151,153 | J69: 13,152,236 | K69: nad h-quinone oxidoreductase subunit chloroplastic-like | L69: AT4G37925 | M69: NDH-M | N69: NADH dehydrogenase complex (plastoquinone) assembly, oxidation-reduction process
A70: oleic-2c | B70: Bn-A08-p15802943 | C70: 8 | D70: 13,299,987 | E70: 1.84E-04 | F70: 3.734027169 | G70: =I70-D70 -> 654 | H70: BnaA08g16210D | I70: 13,300,641 | J70: 13,301,882 | L70: AT4G39810 | M70: NEN4 | N70: 3'-5' exonuclease activity, exonuclease activity
A71: oleic-2c | B71: Bn-A09-p28925363 | C71: 9 | D71: 26,858,796 | E71: 1.49E-05 | F71: 4.826726299 | H71: BnaA09g37290D | I71: 26,856,951 | J71: 26,859,483 | K71: phenylalanyl-trna synthetase | L71: AT3G58140 | N71: phenylalanyl-tRNA aminoacylation
A73: oleic-2c | B73: Bn-scaff_20250_1-p213370 | C73: 11 | D73: 16,905,309 | E73: 1.92E-06 | F73: 5.716156242 | G73: =D73-I73 -> 897 | H73: BnaC01g23250D | I73: 16,904,412 | J73: 16,905,363 | K73: late embryogenesis abundant | L73: AT3G51810 | M73: ATEM1 | N73: embryo development ending in seed dormancy, response to abscisic acid，lipid storage
A74: oleic-2c | B74: Bn-scaff_22970_1-p374054 | C74: 12 | D74: 940,796 | E74: 2.94E-05 | F74: 4.532081267 | H74: BnaC02g45210D | I74: 939,260 | J74: 941,458 | K74: protein trigalactosyldiacylglycerol chloroplastic-like | L74: AT1G65410 | M74: ABCI13 | N74: lipid transport
I75: =D74-I74 -> 1,536 | J75: 1,536
A76: oleic-2c | B76: Bn-scaff_22970_1-p364419 | C76: 12 | D76: 949,829 | E76: 1.48E-04 | F76: =-LOG(E76) -> 3.829181102 | G76: =I76-D76 -> 1,650 | H76: BnaC02g02110D | I76: 951,479 | J76: 953,547 | K76: tropinone reductase homolog at1g07440-like | L76: AT5G06060 | N76: oxidation-reduction process
A77: oleic-2c | B77: Bn-scaff_22970_1-p138277 | C77: 12 | D77: 1,100,138 | E77: 3.59E-05 | F77: =-LOG(E77) -> 4.444385677
A78: oleic-2c | B78: Bn-scaff_22970_1-p138145 | C78: 12 | D78: 1,100,270 | E78: 3.59E-05 | F78: 4.444385677
A79: oleic-2c | B79: Bn-scaff_22970_1-p137701 | C79: 12 | D79: 1,100,715 | E79: 2.44E-05 | F79: 4.613340545
A80: oleic-2c | B80: Bn-scaff_22970_1-p137256 | C80: 12 | D80: 1,101,161 | E80: 3.59E-05 | F80: 4.444385677 | G80: =I81-D80 -> 1,952 | H80: BnaC02g45360D | I80: 1,103,113 | J80: 1,104,388 | K80: s-adenosyl-l-methionine:carboxyl methyltransferase family protein | L80: AT1G66700 | M80: PXMT1 | N80: defense response to bacterium, gene silencing by miRNA, methylation, multicellular organism development, regulation of root development, regulation of seed germination, regulation of seedling development, response to bacterium, response to herbivore, response to light stimulus, response to molecule of fungal origin, response to salicylic acid
A81: oleic-2c | B81: Bn-scaff_22970_1-p137005 | C81: 12 | D81: 1,101,414 | E81: 3.59E-05 | F81: 4.444385677 | G81: =I81-D81 -> 1,699 | H81: BnaC02g45360D | I81: 1,103,113 | J81: 1,104,388 | K81: s-adenosyl-l-methionine:carboxyl methyltransferase family protein | L81: AT1G66700 | M81: PXMT1 | N81: defense response to bacterium, gene silencing by miRNA, methylation, multicellular organism development, regulation of root development, regulation of seed germination, regulation of seedling development, response to bacterium, response to herbivore, response to light stimulus, response to molecule of fungal origin, response to salicylic acid
A82: oleic-2c | B82: Bn-scaff_22970_1-p136203 | C82: 12 | D82: 1,102,226 | E82: 4.49E-05 | F82: 4.347773004 | G82: =I81-D82 -> 887 | H82: BnaC02g45360D | I82: 1,103,113 | J82: 1,104,388 | K82: s-adenosyl-l-methionine:carboxyl methyltransferase family protein | L82: AT1G66700 | M82: PXMT1 | N82: defense response to bacterium, gene silencing by miRNA, methylation, multicellular organism development, regulation of root development, regulation of seed germination, regulation of seedling development, response to bacterium, response to herbivore, response to light stimulus, response to molecule of fungal origin, response to salicylic acid
A83: oleic-2c | B83: Bn-scaff_22970_1-p41695 | C83: 12 | D83: 1,177,562 | E83: 2.85E-05 | F83: 4.545475264 | G83: =I83-D83 -> 6 | H83: BnaC02g02680D | I83: 1,177,568 | J83: 1,180,397 | K83: glycosyltransferase family protein 47 | L83: AT5G04500 | M83: GINT1 | N83: lipid glycosylation, protein glycosylation, response to salt stress, seed germination
A84: oleic-2c | B84: Bn-scaff_15918_1-p196704 | C84: 12 | D84: 42,155,698 | E84: 1.12E-04 | F84: =-LOG(E84) -> 3.948886083 | G84: =I84-D84 -> 166 | H84: BnaC02g39160D | I84: 42,155,864 | J84: 42,165,072 | K84: ---NA--- | L84: AT5G63930 | N84: protein autophosphorylation, protein phosphorylation, transmembrane receptor protein tyrosine kinase signaling pathway
A85: oleic-2c | B85: Bn-scaff_15918_1-p230606 | C85: 12 | D85: 42,165,343 | E85: 1.69E-04 | F85: =-LOG(E85) -> 3.772216099
A93: oleic-2c | B93: Bn-scaff_17042_1-p711807 | C93: 13 | D93: 53,879,151 | E93: 3.13E-04 | F93: 3.50477491
A94: oleic-2c | B94: Bn-scaff_17457_1-p505494 | C94: 13 | D94: 53,910,265 | E94: 3.13E-04 | F94: 3.50477491
A95: oleic-2c | B95: Bn-scaff_17457_1-p244526 | C95: 13 | D95: 54,300,314 | E95: 3.16E-04 | F95: 3.500244205
A96: oleic-2c | B96: Bn-scaff_17457_1-p191394 | C96: 13 | D96: 54,353,693 | E96: 1.77E-04 | F96: 3.75276345
A97: oleic-2c | B97: Bn-scaff_17457_1-p188947 | C97: 13 | D97: 54,355,906 | E97: 1.77E-04 | F97: 3.75276345
A98: oleic-2c | B98: Bn-scaff_17457_1-p188816 | C98: 13 | D98: 54,356,037 | E98: 9.27E-05 | F98: 4.032704812
A99: oleic-2c | B99: Bn-scaff_15794_3-p165426 | C99: 13 | D99: 55,436,899 | E99: 3.07E-10 | F99: 9.513059719
A100: oleic-3c | B100: Bn-scaff_15794_3-p165426 | C100: 13 | D100: 55,436,899 | E100: 2.17E-05 | F100: 4.662660561
A101: oleic-2c | B101: Bn-scaff_15794_3-p154754 | C101: 13 | D101: 55,441,210 | E101: 4.12E-11 | F101: 10.3845971 | G101: =I101-D101 -> 86 | H101: BnaC03g65760D | I101: 55,441,296 | J101: 55,441,817 | K101: ---NA--- | L101: AT5G51795 | N101: DNA replication, cellular response to DNA damage stimulus
A102: oleic-3c | B102: Bn-scaff_15794_3-p154754 | C102: 13 | D102: 55,441,210 | E102: 1.76E-05 | F102: 4.753895516
A103: oleic-2c | B103: Bn-scaff_15794_3-p154541 | C103: 13 | D103: 55,441,423 | E103: 1.19E-10 | F103: 9.924891204
A104: oleic-3c | B104: Bn-scaff_15794_3-p154541 | C104: 13 | D104: 55,441,423 | E104: 2.65E-05 | F104: 4.576836076
A105: oleic-2c | B105: Bn-scaff_15794_3-p154030 | C105: 13 | D105: 55,441,934 | E105: 1.19E-10 | F105: 9.924891204
A106: oleic-3c | B106: Bn-scaff_15794_3-p154030 | C106: 13 | D106: 55,441,934 | E106: 2.65E-05 | F106: 4.576836076
A107: oleic-2c | B107: Bn-scaff_15794_3-p153296 | C107: 13 | D107: 55,442,666 | E107: 6.87E-09 | F107: 8.162841019
A108: oleic-3c | B108: Bn-scaff_15794_3-p153296 | C108: 13 | D108: 55,442,666 | E108: 5.09E-05 | F108: 4.292889909
A109: oleic-2c | B109: Bn-scaff_15794_3-p147011 | C109: 13 | D109: 55,448,897 | E109: 7.82E-10 | F109: 9.107032119
A110: oleic-3c | B110: Bn-scaff_15794_3-p147011 | C110: 13 | D110: 55,448,897 | E110: 5.54E-05 | F110: 4.256568635
A111: oleic-2c | B111: Bn-scaff_15794_3-p146954 | C111: 13 | D111: 55,448,954 | E111: 1.51E-10 | F111: 9.821368325
A112: oleic-3c | B112: Bn-scaff_15794_3-p146954 | C112: 13 | D112: 55,448,954 | E112: 6.07E-05 | F112: 4.216568115
A113: oleic-2c | B113: Bn-scaff_15794_3-p33912 | C113: 13 | D113: 55,541,705 | E113: 4.12E-11 | F113: 10.3845971
A114: oleic-3c | B114: Bn-scaff_15794_3-p33912 | C114: 13 | D114: 55,541,705 | E114: 1.76E-05 | F114: 4.753895516
A115: oleic-2c | B115: Bn-scaff_15794_3-p33848 | C115: 13 | D115: 55,541,769 | E115: 1.19E-10 | F115: =-LOG(E115) -> 9.924891204
A116: oleic-3c | B116: Bn-scaff_15794_3-p33848 | C116: 13 | D116: 55,541,769 | E116: 2.65E-05 | F116: 4.576836076
A117: oleic-2c | B117: Bn-scaff_15794_3-p32373 | C117: 13 | D117: 55,543,428 | E117: 4.05E-11 | F117: 10.39265222
A118: oleic-3c | B118: Bn-scaff_15794_3-p32373 | C118: 13 | D118: 55,543,428 | E118: 1.72E-05 | F118: 4.764092973
A119: oleic-2c | B119: Bn-scaff_15794_3-p32092 | C119: 13 | D119: 55,543,547 | E119: 2.67E-11 | F119: 10.57291981
A120: oleic-3c | B120: Bn-scaff_15794_3-p32092 | C120: 13 | D120: 55,543,547 | E120: 1.64E-05 | F120: 4.784653297
A121: oleic-2c | B121: Bn-scaff_15794_3-p29807 | C121: 13 | D121: 55,549,750 | E121: 1.19E-10 | F121: 9.924891204
A122: oleic-3c | B122: Bn-scaff_15794_3-p29807 | C122: 13 | D122: 55,549,750 | E122: 2.65E-05 | F122: 4.576836076
A123: oleic-2c | B123: Bn-scaff_15794_3-p9180 | C123: 13 | D123: 55,570,415 | E123: 6.93E-09 | F123: 8.159392121 | G123: =I123-D123 -> 1,600 | H123: BnaC03g65810D | I123: 55,572,015 | J123: 55,574,078 | K123: arginine decarboxylase | L123: AT4G34710 | M123: ATADC2 | N123: arginine catabolic process, polyamine biosynthetic process, putrescine biosynthetic process, putrescine biosynthetic process from arginine, response to abscisic acid, response to cold, response to jasmonic acid, response to karrikin, response to osmotic stress, response to oxidative stress, response to salt stress, response to wounding, seed development, spermidine biosynthetic process
A124: oleic-3c | B124: Bn-scaff_15794_3-p9180 | C124: 13 | D124: 55,570,415 | E124: 1.08E-04 | F124: 3.967340954
A125: oleic-2c | B125: Bn-scaff_15794_3-p75109 | C125: 13 | D125: 55,706,691 | E125: 1.19E-10 | F125: 9.924891204
A126: oleic-3c | B126: Bn-scaff_15794_3-p75109 | C126: 13 | D126: 55,706,691 | E126: 2.65E-05 | F126: 4.576836076
A127: oleic-2c | B127: Bn-scaff_15794_3-p75392 | C127: 13 | D127: 55,706,974 | E127: 3.07E-10 | F127: 9.513059719
A128: oleic-3c | B128: Bn-scaff_15794_3-p75392 | C128: 13 | D128: 55,706,974 | E128: 2.17E-05 | F128: 4.662660561
A129: oleic-2c | B129: Bn-scaff_15794_3-p83984 | C129: 13 | D129: 55,711,337 | E129: 1.67E-09 | F129: 8.778194682
A130: oleic-3c | B130: Bn-scaff_15794_3-p83984 | C130: 13 | D130: 55,711,337 | E130: 4.23E-05 | F130: 4.373269661
A131: oleic-2c | B131: Bn-scaff_15794_3-p84885 | C131: 13 | D131: 55,712,232 | E131: 1.19E-10 | F131: 9.924891204
A132: oleic-3c | B132: Bn-scaff_15794_3-p84885 | C132: 13 | D132: 55,712,232 | E132: 2.65E-05 | F132: 4.576836076
A133: oleic-2c | B133: Bn-scaff_15794_3-p85268 | C133: 13 | D133: 55,712,614 | E133: 3.07E-10 | F133: 9.513059719
A134: oleic-3c | B134: Bn-scaff_15794_3-p85268 | C134: 13 | D134: 55,712,614 | E134: 2.17E-05 | F134: 4.662660561
A135: oleic-2c | B135: Bn-scaff_15794_3-p85516 | C135: 13 | D135: 55,712,862 | E135: 3.07E-10 | F135: 9.513059719
A136: oleic-3c | B136: Bn-scaff_15794_3-p85516 | C136: 13 | D136: 55,712,862 | E136: 2.17E-05 | F136: 4.662660561
A137: oleic-2c | B137: Bn-scaff_15794_3-p89166 | C137: 13 | D137: 55,716,441 | E137: 1.19E-10 | F137: 9.924891204
A138: oleic-3c | B138: Bn-scaff_15794_3-p89166 | C138: 13 | D138: 55,716,441 | E138: 2.65E-05 | F138: 4.576836076
A139: oleic-2c | B139: Bn-scaff_15794_3-p89442 | C139: 13 | D139: 55,716,717 | E139: 3.07E-10 | F139: 9.513059719
A140: oleic-3c | B140: Bn-scaff_15794_3-p89442 | C140: 13 | D140: 55,716,717 | E140: 2.17E-05 | F140: 4.662660561
A141: oleic-2c | B141: Bn-scaff_15794_3-p89881 | C141: 13 | D141: 55,717,233 | E141: 1.19E-10 | F141: 9.924891204
A142: oleic-3c | B142: Bn-scaff_15794_3-p89881 | C142: 13 | D142: 55,717,233 | E142: 2.65E-05 | F142: 4.576836076
A143: oleic-2c | B143: Bn-scaff_15794_3-p89999 | C143: 13 | D143: 55,717,351 | E143: 3.15E-11 | F143: 10.50181355
A144: oleic-3c | B144: Bn-scaff_15794_3-p89999 | C144: 13 | D144: 55,717,351 | E144: 1.25E-05 | F144: 4.904516814
A145: oleic-2c | B145: Bn-scaff_15794_3-p90139 | C145: 13 | D145: 55,717,491 | E145: 4.60E-11 | F145: 10.33711945
A146: oleic-3c | B146: Bn-scaff_15794_3-p90139 | C146: 13 | D146: 55,717,491 | E146: 1.28E-05 | F146: 4.891198276
A147: oleic-2c | B147: Bn-scaff_15794_3-p108033 | C147: 13 | D147: 55,728,616 | E147: 1.01E-10 | F147: =-LOG(E147) -> 9.997574735
A148: oleic-3c | B148: Bn-scaff_15794_3-p108033 | C148: 13 | D148: 55,728,616 | E148: 1.14E-06 | F148: 5.941801812
A149: oleic-2c | B149: Bn-scaff_15794_3-p137832 | C149: 13 | D149: 55,738,318 | E149: 4.12E-11 | F149: 10.3845971
A150: oleic-3c | B150: Bn-scaff_15794_3-p137832 | C150: 13 | D150: 55,738,318 | E150: 1.76E-05 | F150: 4.753895516 | H150: BnaC03g66010D | I150: 55,737,168 | J150: 55,743,363 | K150: alkaline phytoceramidase
A155: oleic-1c | B155: Bn-scaff_17441_1-p986906 | C155: 15 | D155: 40,102,890 | E155: 1.92E-04 | F155: 3.715907809 | H155: BnaC05g43060D | I155: 40,101,964 | J155: 40,104,048 | K155: gdsl-motif lipase hydrolase family protein | L155: AT3G09930 | N155: lipid catabolic process
A156: oleic-2c | B156: Bn-scaff_15705_3-p234783 | C156: 17 | D156: 36,007,465 | E156: 2.71E-06 | F156: 5.566422162 | G156: =I156-D156 -> 787 | H156: BnaC07g32280D | I156: 36,008,252 | J156: 36,011,174 | K156: receptor-like protein kinase feronia | L156: AT3G51550 | M156: FER | N156: abscisic acid-activated signaling pathway, brassinosteroid mediated signaling pathway, defense response to fungus, ethylene-activated signaling pathway, negative regulation of abscisic acid-activated signaling pathway, negative regulation of cell growth, pollen tube reception, post-embryonic development, protein autophosphorylation, response to brassinosteroid, response to ethylene, root development, single fertilization, stomatal movement
A157: oleic-2c | B157: Bn-scaff_15705_3-p253023 | C157: 17 | D157: 36,019,053 | E157: 2.25E-05 | F157: 4.647914002 | G157: =I157-D157 -> 390 | H157: BnaC07g32320D | I157: 36,019,443 | J157: 36,020,204 | K157: nonspecific lipid-transfer protein | L157: AT3G51600 | M157: LTP5 | N157: lipid transport，very long-chain fatty acid metabolic process
A161: oleic-2c | B161: Bn-scaff_16110_1-p2540852 | C161: 17 | D161: 42,354,412 | E161: 4.74E-05 | F161: 4.324212496 | H161: BnaC07g43200D | I161: 42,348,468 | J161: 42,354,880 | K161: dna topoisomerase 1-like | L161: AT4G31210 | N161: DNA topological change, DNA unwinding involved in DNA replication
A162: oleic-2c | B162: Bn-scaff_16110_1-p2532535 | C162: 17 | D162: 42,368,183 | E162: 5.25E-06 | F162: 5.279766252 | H162: BnaC07g43220D | I162: 42,367,035 | J162: 42,369,147 | K162: 20s proteasome subunit pba1 | L162: AT4G31300 | M162: PBA1 | N162: proteasomal protein catabolic process, proteasomal ubiquitin-independent protein catabolic process, proteasome-mediated ubiquitin-dependent protein catabolic process, proteolysis involved in cellular protein catabolic process, regulation of plant-type hypersensitive response, response to salt stress, response to zinc ion, ubiquitin-dependent protein catabolic process
A163: oleic-2c | B163: Bn-scaff_16110_1-p2523925 | C163: 17 | D163: 42,376,997 | E163: 1.99E-04 | F163: 3.701059637
A164: oleic-2c | B164: Bn-scaff_16110_1-p2522717 | C164: 17 | D164: 42,378,059 | E164: 2.79E-04 | F164: 3.555159207
A168: oleic-2c | B168: Bn-scaff_22835_1-p599826 | C168: 18 | D168: 29,287,926 | E168: 6.25E-05 | F168: 4.204411927
A173: oleic-2c | B173: Bn-scaff_17526_1-p1649875 | C173: 19 | D173: 984,747 | E173: 1.40E-04 | F173: 3.852601961 | H173: BnaC09g50980D | I173: 95,931 | J173: 102,050 | K173: nuclear matrix constituent protein 1-like | L173: AT5G65770 | M173: LINC4 | N173: nucleus organization, regulation of nucleus size
A176: oleic-2c | B176: Bn-scaff_19783_1-p327125 | C176: 19 | D176: 2,814,749 | E176: 1.57E-09 | F176: 8.805235976
A177: oleic-3c | B177: Bn-scaff_19783_1-p327125 | C177: 19 | D177: 2,814,749 | E177: 1.04E-05 | F177: 4.982424132
A178: oleic-2c | B178: Bn-scaff_19783_1-p327775 | C178: 19 | D178: 2,815,376 | E178: 1.57E-09 | F178: 8.805235976
A179: oleic-3c | B179: Bn-scaff_19783_1-p327775 | C179: 19 | D179: 2,815,376 | E179: 1.04E-05 | F179: 4.982424132
A180: oleic-2c | B180: Bn-scaff_19783_1-p379086 | C180: 19 | D180: 2,850,069 | E180: 2.86E-06 | F180: =-LOG(E180) -> 5.544013761 | H180: BnaC09g04920D | I180: 2,849,518 | J180: 2,852,000 | K180: dihydroorotate dehydrogenase | L180: AT5G23300 | M180: PYRD | N180: de novo' UMP biosynthetic process, 'de novo' pyrimidine nucleobase biosynthetic process, oxidation-reduction process, pyrimidine ribonucleotide biosynthetic process
A182: oleic-2c | B182: Bn-scaff_17190_1-p9206 | C182: 19 | D182: 3,592,310 | E182: 9.80E-05 | F182: 4.008787219 | H182: BnaC09g05900D | I182: 3,591,564 | J182: 3,593,042 | K182: glutaredoxin-like protein | L182: AT5G63000 | N182: Mitochondrial import inner membrane translocase subunit Tim17/Tim22/Tim23 family protein

Sheet gene
A1: Table S2 Gene information in the significant association of haplotype region.
A2: Chr. | B2: SNP name | C2: SNP position (bp) | D2: -LOG10(p value) | E2: Environment | F2: Start and end SNP r2 | G2: Haplotype block region | H2: Haplotype block size (kb) | I2: Gene | J2: Strat position | K2: End position | L2: Sequence description | M2: Best A.thaliana hit | N2: Best A.thaliana symbol | O2: Best A.thaliana hit annotation | P2: Best A.thaliana hit conference
I3: BnaA02g12050D | J3: 6,303,724 | K3: 6,304,652 | L3: acyl carrier protein | M3: AT1G65290 | N3: mtACP2 | O3: fatty acid biosynthetic process | P3: Meyer et al.,(2007)
A4: A02 | B4: Bn-A02-p9607756 | C4: 6,411,341 | D4: 4.59 | E4: CQ-2013 | F4: 0.77 | G4: 6,311,853-6,435,462 | H4: 113.6 | I4: BnaA02g12080D | J4: 6,320,966 | K4: 6,323,314 | L4: protein trigalactosyldiacylglycerol chloroplastic-like | M4: AT1G65410 | N4: TGD3 | O4: lipid transport | P4: Lu et al., (2007)
E5: 4.59 | I5: BnaA02g12140D | J5: 6,392,327 | K5: 6,393,137 | L5: carnitine isoform 1 | M5: AT1G65520 | N5: ECI1 | O5: unsaturated fatty acid degradation | P5: Goepfert et al., (2008)
A7: A07 | B7: Bn-scaff_17799_1-p1999577 | C7: 22,134,709 | D7: 5.62 | E7: CQ-2014 | F7: 0.51 | G7: 21,797,232-22,256,577 | H7: 459.3 | I7: BnaA07g31060D | J7: 21,841,165 | K7: 21,842,010 | L7: protein | M7: AT1G73890 | O7: lipid transport | P7: INTERPRO:IPR003612: TIGR Arabidopsis annotation team (2005-02-17)
I8: BnaA07g31070D | J8: 21,843,499 | K8: 21,847,378 | L8: alpha beta-hydrolase domain-containing protein | M8: AT1G73920 | O8: lipid metabolic process | P8: InterPro:IPR006693: analysis_reference : GO_REF:0000002:Gene Ontology annotation through association of InterPro records with GO terms
I9: BnaA07g31350D | J9: 21,945,961 | K9: 21,948,563 | L9: glycerophosphoryl diester phosphodiesterase | M9: AT1G74210 | N9: GDPD5 | O9: glycerol metabolic process | P9: Gaudet P et al.,(2011)
I10: BnaA07g31890D | J10: 22,144,732 | K10: 22,148,679 | L10: fatty acid biosynthesis 1 isoform 1 | M10: AT1G74960 | N10: KAS2 | O10: fatty acid biosynthetic process | P10: Carlsson et al., (2002)
A13: A08 | B13: Bn-A08-p12556455 | C13: 10,335,313 | D13: 10.15 | E13: CQ-2014 | F13: 0.63 | G13: 10,335,313-11,301,755 | H13: 996.4 | I13: BnaA08g11440D | J13: 10,385,625 | K13: 10,391,818 | L13: fatty acyl- reductase 3-like | M13: AT4G33790 | N13: FAR3 | O13: lipid metabolic process | P13: Teerawanichpan P et al.,(2010)
B14: Bn-A08-p12556455 | C14: 10,335,313 | D14: 5.10 | E14: CQ-2014 | I14: BnaA08g12350D | J14: 10,994,361 | K14: 10,997,455 | L14: 3-hydroxyisobutyryl- hydrolase-like protein mitochondrial-like | M14: AT4G31810 | N14: CHY4 | O14: fatty acid beta-oxidation | P14: Graham IA et al.,(2002)
B15: Bn-A08-p12699181 | C15: 10,374,054 | D15: 4.21 | E15: CQ-2014 | I15: BnaA08g12780D | J15: 11,285,185 | K15: 11,287,741 | L15: chloroplast omega-6 fatty acid desaturase | M15: AT4G30950 | N15: FAD6 | O15: fatty acid biosynthetic process/unsaturated fatty acid biosynthetic process | P15: Gombos et al., (1992)
B16: Bn-A08-p12752628 | C16: 10,449,878 | D16: 11.14 | E16: CQ-2014 | I16: BnaA08g12800D | J16: 11,293,088 | K16: 11,296,404 | L16: chloroplast omega-6 fatty acid desaturase | M16: AT4G30950 | N16: FAD6 | O16: fatty acid biosynthetic process/unsaturated fatty acid biosynthetic process | P16: Gombos et al., (1992)
B17: Bn-A08-p12752628 | C17: 10,449,878 | D17: 5.40 | E17: CQ-2014
B18: Bn-A08-p12781426 | C18: 10,473,953 | D18: 11.21 | E18: CQ-2014
B19: Bn-A08-p12781426 | C19: 10,473,953 | D19: 5.70 | E19: CQ-2014
B20: Bn-A08-p12794893 | C20: 10,478,871 | D20: 11.18 | E20: CQ-2014
B21: Bn-A08-p12794893 | C21: 10,478,871 | D21: 5.45 | E21: CQ-2014
B22: Bn-A08-p12797532 | C22: 10,481,493 | D22: 11.96 | E22: CQ-2014
B23: Bn-A08-p12797532 | C23: 10,481,493 | D23: 5.46 | E23: CQ-2014
B24: Bn-A08-p12599446 | C24: 10,515,602 | D24: 25.24 | E24: CQ-2014
B25: Bn-A08-p12599446 | C25: 10,515,602 | D25: 9.75 | E25: CQ-2014
B26: Bn-A08-p12814556 | C26: 10,579,999 | D26: 29.90 | E26: CQ-2014
B27: Bn-A08-p12814556 | C27: 10,579,999 | D27: 9.06 | E27: CQ-2014
B28: Bn-A08-p12820786 | C28: 10,587,676 | D28: 27.71 | E28: CQ-2014
B29: Bn-A08-p12820786 | C29: 10,587,676 | D29: 10.65 | E29: CQ-2014
B30: Bn-A08-p12940197 | C30: 10,716,400 | D30: 6.69 | E30: CQ-2014
B31: Bn-A08-p12940197 | C31: 10,716,400 | D31: 4.04 | E31: CQ-2014
B32: Bn-Scaffold000320-p11480 | C32: 10,821,343 | D32: 4.15 | E32: CQ-2014
A34: C01 | B34: Bn-scaff_20250_1-p213370 | C34: 16,905,309 | D34: 5.716156242 | E34: CQ-2014 | F34: 0.71 | G34: 16,777,849-17,049,476 | H34: 271.6
I36: BnaC01g23300D | J36: 16,969,647 | K36: 16,970,514 | L36: nonspecific lipid-transfer protein | M36: AT3G51600 | N36: LTP5 | O36: lipid transport | P36: Arondel et al., (2000)
I37: BnaC01g23310D | J37: 16,971,334 | K37: 16,972,667 | L37: lipid transfer protein | M37: AT3G51590 | N37: LTP12 | O37: lipid transport | P37: Yeats TH et al., (2008)
A39: C02 | B39: Bn-scaff_22970_1-p138145 | C39: 1,100,138 | D39: 4.44 | E39: CQ-2014 | F39: 0.65 | G39: 997,000-1,277,438 | H39: 280.4
B40: Bn-scaff_22970_1-p138277 | C40: 1,100,270 | D40: 4.44 | E40: CQ-2014
B41: Bn-scaff_22970_1-p374054 | C41: 1,100,715 | D41: 4.61 | E41: CQ-2014 | I41: BnaC02g02240D | J41: 996,425 | K41: 998,613 | L41: fatty acid desaturase 8 | M41: AT5G05580 | N41: FAD8 | O41: fatty acid desaturase | P41: Gibson et al., (1994)
B42: Bn-scaff_22970_1-p41695 | C42: 1,177,562 | D42: 4.55 | E42: CQ-2014 | I42: BnaC02g02780D | J42: 1275924 | K42: 1284134 | L42: triacylglycerol lipase sdp1-like | M42: AT5G04040 | N42: SDP1 | O42: triglyceride metabolic process | P42: Fan J, et al. , (2017)
A44: C03 | B44: Bn-scaff_15794_3-p165426 | C44: 55,436,899 | D44: 9.51 | E44: CQ-2014 | F44: 0.94 | G44: 55,347,012-55,837,859 | H44: 490.8
B45: Bn-scaff_15794_3-p154754 | C45: 55,441,210 | D45: 4.75 | E45: CQ-2015 | I45: BnaC03g65690D | J45: 55,402,268 | K45: 55,403,738 | L45: protein | M45: AT4G34930 | O45: lipid metabolic process | P45: InterPro:IPR017946: analysis_reference : GO_REF:0000002:Gene Ontology annotation through association of InterPro records with GO terms
B46: Bn-scaff_15794_3-p154754 | C46: 55,441,210 | D46: 10.38 | E46: CQ-2014 | I46: BnaC03g65700D | J46: 55,411,719 | K46: 55,412,941 | L46: protein | M46: AT4G34930 | O46: lipid metabolic process | P46: InterPro:IPR017946: analysis_reference : GO_REF:0000002:Gene Ontology annotation through association of InterPro records with GO terms
B47: Bn-scaff_15794_3-p154541 | C47: 55,441,423 | D47: 4.58 | E47: CQ-2015 | I47: BnaC03g65980D | J47: 55,684,352 | K47: 55,685,779 | L47: fae1 | M47: AT4G34520 | N47: FAE1 | O47: fatty acid biosynthetic process | P47: James DW et al., (1995)
B48: Bn-scaff_15794_3-p154541 | C48: 55,441,423 | D48: 9.92 | E48: CQ-2014
B49: Bn-scaff_15794_3-p154030 | C49: 55,441,934 | D49: 4.58 | E49: CQ-2015
B50: Bn-scaff_15794_3-p154030 | C50: 55,441,934 | D50: 9.92 | E50: CQ-2014
B51: Bn-scaff_15794_3-p153296 | C51: 55,442,666 | D51: 4.29 | E51: CQ-2015
B52: Bn-scaff_15794_3-p153296 | C52: 55,442,666 | D52: 8.16 | E52: CQ-2014
B53: Bn-scaff_15794_3-p147011 | C53: 55,448,897 | D53: 4.26 | E53: CQ-2015
B54: Bn-scaff_15794_3-p147011 | C54: 55,448,897 | D54: 9.11 | E54: CQ-2014
B55: Bn-scaff_15794_3-p146954 | C55: 55,448,954 | D55: 4.22 | E55: CQ-2015
B56: Bn-scaff_15794_3-p146954 | C56: 55,448,954 | D56: 9.82 | E56: CQ-2014
B57: Bn-scaff_15794_3-p33912 | C57: 55,541,705 | D57: 4.75 | E57: CQ-2015
B58: Bn-scaff_15794_3-p33912 | C58: 55,541,705 | D58: 10.38 | E58: CQ-2014
B59: Bn-scaff_15794_3-p33848 | C59: 55,541,769 | D59: 4.58 | E59: CQ-2015
B60: Bn-scaff_15794_3-p33848 | C60: 55,541,769 | D60: 9.92 | E60: CQ-2014
B61: Bn-scaff_15794_3-p32373 | C61: 55,543,428 | D61: 4.76 | E61: CQ-2015
B62: Bn-scaff_15794_3-p32373 | C62: 55,543,428 | D62: 10.39 | E62: CQ-2014
B63: Bn-scaff_15794_3-p32092 | C63: 55,543,547 | D63: 4.78 | E63: CQ-2015
B64: Bn-scaff_15794_3-p32092 | C64: 55,543,547 | D64: 10.57 | E64: CQ-2014
B65: Bn-scaff_15794_3-p29807 | C65: 55,549,750 | D65: 4.58 | E65: CQ-2015
B66: Bn-scaff_15794_3-p29807 | C66: 55,549,750 | D66: 9.92 | E66: CQ-2014
B67: Bn-scaff_15794_3-p9180 | C67: 55,570,415 | D67: 3.97 | E67: CQ-2015
B68: Bn-scaff_15794_3-p9180 | C68: 55,570,415 | D68: 8.16 | E68: CQ-2014
B69: Bn-scaff_15794_3-p75109 | C69: 55,706,691 | D69: 4.58 | E69: CQ-2015
B70: Bn-scaff_15794_3-p75109 | C70: 55,706,691 | D70: 9.92 | E70: CQ-2014
B71: Bn-scaff_15794_3-p75392 | C71: 55,706,974 | D71: 4.66 | E71: CQ-2015
B72: Bn-scaff_15794_3-p75392 | C72: 55,706,974 | D72: 9.51 | E72: CQ-2014
B73: Bn-scaff_15794_3-p83984 | C73: 55,711,337 | D73: 4.37 | E73: CQ-2015
B74: Bn-scaff_15794_3-p83984 | C74: 55,711,337 | D74: 8.78 | E74: CQ-2014
B75: Bn-scaff_15794_3-p84885 | C75: 55,712,232 | D75: 4.58 | E75: CQ-2015
B76: Bn-scaff_15794_3-p84885 | C76: 55,712,232 | D76: 9.92 | E76: CQ-2014
B77: Bn-scaff_15794_3-p85268 | C77: 55,712,614 | D77: 4.66 | E77: CQ-2015
B78: Bn-scaff_15794_3-p85268 | C78: 55,712,614 | D78: 9.51 | E78: CQ-2014
B79: Bn-scaff_15794_3-p85516 | C79: 55,712,862 | D79: 4.66 | E79: CQ-2015
B80: Bn-scaff_15794_3-p85516 | C80: 55,712,862 | D80: 9.51 | E80: CQ-2014
B81: Bn-scaff_15794_3-p89166 | C81: 55,716,441 | D81: 4.58 | E81: CQ-2015
B82: Bn-scaff_15794_3-p89166 | C82: 55,716,441 | D82: 9.92 | E82: CQ-2014
B83: Bn-scaff_15794_3-p89442 | C83: 55,716,717 | D83: 4.66 | E83: CQ-2015
B84: Bn-scaff_15794_3-p89442 | C84: 55,716,717 | D84: 9.51 | E84: CQ-2014
B85: Bn-scaff_15794_3-p89881 | C85: 55,717,233 | D85: 4.58 | E85: CQ-2015
B86: Bn-scaff_15794_3-p89881 | C86: 55,717,233 | D86: 9.92 | E86: CQ-2014
B87: Bn-scaff_15794_3-p89999 | C87: 55,717,351 | D87: 4.90 | E87: CQ-2015
B88: Bn-scaff_15794_3-p89999 | C88: 55,717,351 | D88: 10.50 | E88: CQ-2014
B89: Bn-scaff_15794_3-p90139 | C89: 55,717,491 | D89: 4.89 | E89: CQ-2015
B90: Bn-scaff_15794_3-p90139 | C90: 55,717,491 | D90: 10.34 | E90: CQ-2014
B91: Bn-scaff_15794_3-p108033 | C91: 55,728,616 | D91: 5.94 | E91: CQ-2015
B92: Bn-scaff_15794_3-p108033 | C92: 55,728,616 | D92: 10.00 | E92: CQ-2014
B93: Bn-scaff_15794_3-p108033 | C93: 55,728,616 | D93: 4.00 | E93: CQ-2015
B94: Bn-scaff_15794_3-p137832 | C94: 55,738,318 | D94: 4.75 | E94: CQ-2015
B95: Bn-scaff_15794_3-p137832 | C95: 55,738,318 | D95: 10.38 | E95: CQ-2014
A96: Arondel VV, Vergnolle C, Cantrel C, Kader J.(2000) Lipid transfer proteins are encoded by a small multigene family in Arabidopsis thaliana. Plant Sci. 157(1):1-12.
A97: Carlsson AS, LaBrie ST, Kinney AJ, von Wettstein-Knowles P, Browse J.(2002) A KAS2 cDNA complements the phenotypes of the Arabidopsis fab1 mutant that differs in a single residue bordering the substrate binding pocket. Plant J. 29(6):761-70.
A98: Fan J, Yu L, Xu C2.（2017）A Central Role for Triacylglycerol in Membrane Lipid Breakdown, Fatty Acid β-Oxidation, and Plant Survival under Extended Darkness. Plant Physiol. 174(3):1517-1530.
A99: Finazzi G, Petroutsos D, Tomizioli M, Flori S, Sautron E, Villanova V, Rolland N, Seigneurin-Berny D. (2015) Ions channels/transporters and chloroplast regulation. Cell Calcium. 58(1):86-97.
A100: Gaudet P, Livstone MS, Lewis SE, Thomas PD.（2011）Phylogenetic-based propagation of functional annotations within the Gene Ontology consortium. Brief Bioinform. 12(5):449-62.
A101: Gibson S, Arondel V, Iba K, Somerville C. (1994) Cloning of a temperature-regulated gene encoding a chloroplast omega-3 desaturase from Arabidopsis thaliana. Plant Phy. 106(4):1615-21.
A102: Goepfert S, Vidoudez C, Tellgren-Roth C, Delessert S, Hiltunen JK, Poirier Y.(2008) Peroxisomal Delta(3),Delta(2)-enoyl CoA isomerases and evolution of cytosolic paralogues in embryophytes. Plant J. 56(5):728-42.
A103: Graham IA, Eastmond PJ.(2002) Pathways of straight and branched chain fatty acid catabolism in higher plants. Prog Lipid Res. 41(2):156-81.
A104: James DW Jr, Lim E, Keller J, Plooy I, Ralston E, Dooner HK. (1995)Directed tagging of the Arabidopsis FATTY ACID ELONGATION1 (FAE1) gene with the maize transposon activator. Plant Cell. 7(3):309-19.
A105: Lu B, Xu C, Awai K, Jones AD, Benning C.(2007) A small ATPase protein of Arabidopsis, TGD3, involved in chloroplast lipid import. J Biol Chem. 282(49):35945-53.
A106: Meyer EH, Heazlewood JL, Millar AH.( 2007) Mitochondrial acyl carrier proteins in Arabidopsis thaliana are predominantly soluble matrix proteins and none can be confirmed as subunits of respiratory Complex I. Plant Mol Biol.64(3):319-327
A107: Teerawanichpan P, Qiu X. (2010) Fatty acyl-CoA reductase and wax synthase from Euglena gracilis in the biosynthesis of medium-chain wax esters. Lipids. 45(3):263-73.
A108: Yeats TH, Rose JK.（2008）The biochemistry and biology of extracellular plant lipid-transfer proteins (LTPs). Protein Sci. 17(2):191-8.
A109: Gombos Z, Wada H, Murata N. (1992) Unsaturation of fatty acids in membrane lipids enhances tolerance of the cyanobacterium Synechocystis PCC6803 to low‐temperature photoinhibition.Proceedings of the National Academy of Sciences USA 89, 9959–9963.

Sheet Sheet1 (hidden)
A1: Trait | B1: SNP | C1: CHR | D1: POS | E1: P
A2: oleic-2c | B2: Bn-A08-p12814556 | C2: 8 | D2: 10579999 | E2: 1.27E-30 | G2: 29.89756629
A3: oleic-2c | B3: Bn-A08-p12820786 | C3: 8 | D3: 10587676 | E3: 1.95E-28 | G3: 27.70905322
A4: oleic-2c | B4: Bn-A08-p12599446 | C4: 8 | D4: 10515602 | E4: 5.77E-26 | G4: 25.2387113
A5: oleic-2c | B5: Bn-A08-p12797532 | C5: 8 | D5: 10481493 | E5: 1.10E-12 | G5: 11.9595559
A6: oleic-2c | B6: Bn-A08-p12781426 | C6: 8 | D6: 10473953 | E6: 6.21E-12 | G6: 11.20672661
A7: oleic-2c | B7: Bn-A08-p12794893 | C7: 8 | D7: 10478871 | E7: 6.55E-12 | G7: 11.183646
A8: oleic-2c | B8: Bn-A08-p12752628 | C8: 8 | D8: 10449878 | E8: 7.24E-12 | G8: 11.14012349
A9: oleic-3c | B9: Bn-A08-p12820786 | C9: 8 | D9: 10587676 | E9: 2.25E-11 | G9: 10.6474509
A10: oleic-2c | B10: Bn-scaff_15794_3-p32092 | C10: 13 | D10: 55543547 | E10: 2.67E-11 | G10: 10.57291981
A11: oleic-2c | B11: Bn-scaff_15794_3-p89999 | C11: 13 | D11: 55717351 | E11: 3.15E-11 | G11: 10.50181355
A12: oleic-2c | B12: Bn-scaff_15794_3-p32373 | C12: 13 | D12: 55543428 | E12: 4.05E-11 | G12: 10.39265222
A13: oleic-2c | B13: Bn-scaff_15794_3-p154754 | C13: 13 | D13: 55441210 | E13: 4.12E-11 | G13: 10.3845971
A14: oleic-2c | B14: Bn-scaff_15794_3-p33912 | C14: 13 | D14: 55541705 | E14: 4.12E-11 | G14: 10.3845971
A15: oleic-2c | B15: Bn-scaff_15794_3-p137832 | C15: 13 | D15: 55738318 | E15: 4.12E-11 | G15: 10.3845971
A16: oleic-2c | B16: Bn-scaff_15794_3-p90139 | C16: 13 | D16: 55717491 | E16: 4.60E-11 | G16: 10.33711945
A17: oleic-2c | B17: Bn-A08-p12556455 | C17: 8 | D17: 10335313 | E17: 7.16E-11 | G17: 10.14502026
A18: oleic-2c | B18: Bn-scaff_15794_3-p108033 | C18: 13 | D18: 55728616 | E18: 1.01E-10 | G18: 9.997574735
A19: oleic-2c | B19: Bn-scaff_15794_3-p154541 | C19: 13 | D19: 55441423 | E19: 1.19E-10 | G19: 9.924891204
A20: oleic-2c | B20: Bn-scaff_15794_3-p154030 | C20: 13 | D20: 55441934 | E20: 1.19E-10 | G20: 9.924891204
A21: oleic-2c | B21: Bn-scaff_15794_3-p33848 | C21: 13 | D21: 55541769 | E21: 1.19E-10 | G21: 9.924891204
A22: oleic-2c | B22: Bn-scaff_15794_3-p29807 | C22: 13 | D22: 55549750 | E22: 1.19E-10 | G22: 9.924891204
A23: oleic-2c | B23: Bn-scaff_15794_3-p75109 | C23: 13 | D23: 55706691 | E23: 1.19E-10 | G23: 9.924891204
A24: oleic-2c | B24: Bn-scaff_15794_3-p84885 | C24: 13 | D24: 55712232 | E24: 1.19E-10 | G24: 9.924891204
A25: oleic-2c | B25: Bn-scaff_15794_3-p89166 | C25: 13 | D25: 55716441 | E25: 1.19E-10 | G25: 9.924891204
A26: oleic-2c | B26: Bn-scaff_15794_3-p89881 | C26: 13 | D26: 55717233 | E26: 1.19E-10 | G26: 9.924891204
A27: oleic-2c | B27: Bn-scaff_15794_3-p146954 | C27: 13 | D27: 55448954 | E27: 1.51E-10 | G27: 9.821368325
A28: oleic-3c | B28: Bn-A08-p12599446 | C28: 8 | D28: 10515602 | E28: 1.78E-10 | G28: 9.750459235
A29: oleic-2c | B29: Bn-scaff_15794_3-p165426 | C29: 13 | D29: 55436899 | E29: 3.07E-10 | G29: 9.513059719
A30: oleic-2c | B30: Bn-scaff_15794_3-p75392 | C30: 13 | D30: 55706974 | E30: 3.07E-10 | G30: 9.513059719
A31: oleic-2c | B31: Bn-scaff_15794_3-p85268 | C31: 13 | D31: 55712614 | E31: 3.07E-10 | G31: 9.513059719
A32: oleic-2c | B32: Bn-scaff_15794_3-p85516 | C32: 13 | D32: 55712862 | E32: 3.07E-10 | G32: 9.513059719
A33: oleic-2c | B33: Bn-scaff_15794_3-p89442 | C33: 13 | D33: 55716717 | E33: 3.07E-10 | G33: 9.513059719
A34: oleic-2c | B34: Bn-scaff_15794_3-p147011 | C34: 13 | D34: 55448897 | E34: 7.82E-10 | G34: 9.107032119
A35: oleic-3c | B35: Bn-A08-p12814556 | C35: 8 | D35: 10579999 | E35: 8.78E-10 | G35: 9.05665885
A36: oleic-2c | B36: Bn-scaff_15794_3-p83984 | C36: 13 | D36: 55711337 | E36: 1.67E-09 | G36: 8.778194682
A37: oleic-2c | B37: Bn-scaff_16996_1-p283285 | C37: 13 | D37: 56375282 | E37: 3.36E-09 | G37: 8.473725355
A38: oleic-2c | B38: Bn-scaff_15794_3-p153296 | C38: 13 | D38: 55442666 | E38: 6.87E-09 | G38: 8.162841019
A39: oleic-2c | B39: Bn-scaff_15794_3-p9180 | C39: 13 | D39: 55570415 | E39: 6.93E-09 | G39: 8.159392121
A40: oleic-2c | B40: Bn-A08-p12940197 | C40: 8 | D40: 10716400 | E40: 2.02E-07 | G40: 6.694584136
A41: oleic-3c | B41: Bn-scaff_15794_3-p108033 | C41: 13 | D41: 55728616 | E41: 1.14E-06 | G41: 5.941801812
A42: oleic-3c | B42: Bn-A08-p12781426 | C42: 8 | D42: 10473953 | E42: 2.01E-06 | G42: 5.696091506
A43: oleic-2c | B43: Bn-scaff_15705_3-p234783 | C43: 17 | D43: 36007465 | E43: 2.71E-06 | G43: 5.566422162
A44: oleic-3c | B44: Bn-A08-p12797532 | C44: 8 | D44: 10481493 | E44: 3.43E-06 | G44: 5.464123834
A45: oleic-3c | B45: Bn-A08-p12794893 | C45: 8 | D45: 10478871 | E45: 3.53E-06 | G45: 5.452385263
A46: oleic-3c | B46: Bn-A08-p12752628 | C46: 8 | D46: 10449878 | E46: 4.00E-06 | G46: 5.397603561
A47: oleic-2c | B47: Bn-scaff_16110_1-p2532535 | C47: 17 | D47: 42368183 | E47: 5.25E-06 | G47: 5.279766252
A48: oleic-3c | B48: Bn-A08-p12556455 | C48: 8 | D48: 10335313 | E48: 7.99E-06 | G48: 5.09755107
A49: oleic-3c | B49: Bn-scaff_15794_3-p89999 | C49: 13 | D49: 55717351 | E49: 1.25E-05 | G49: 4.904516814
A50: oleic-3c | B50: Bn-scaff_15794_3-p90139 | C50: 13 | D50: 55717491 | E50: 1.28E-05 | G50: 4.891198276
A51: oleic-3c | B51: Bn-scaff_15794_3-p32092 | C51: 13 | D51: 55543547 | E51: 1.64E-05 | G51: 4.784653297
A52: oleic-3c | B52: Bn-scaff_15794_3-p32373 | C52: 13 | D52: 55543428 | E52: 1.72E-05 | G52: 4.764092973
A53: oleic-3c | B53: Bn-scaff_15794_3-p154754 | C53: 13 | D53: 55441210 | E53: 1.76E-05 | G53: 4.753895516
A54: oleic-3c | B54: Bn-scaff_15794_3-p33912 | C54: 13 | D54: 55541705 | E54: 1.76E-05 | G54: 4.753895516
A55: oleic-3c | B55: Bn-scaff_15794_3-p137832 | C55: 13 | D55: 55738318 | E55: 1.76E-05 | G55: 4.753895516
A56: oleic-3c | B56: Bn-scaff_15794_3-p165426 | C56: 13 | D56: 55436899 | E56: 2.17E-05 | G56: 4.662660561
A57: oleic-3c | B57: Bn-scaff_15794_3-p75392 | C57: 13 | D57: 55706974 | E57: 2.17E-05 | G57: 4.662660561
A58: oleic-3c | B58: Bn-scaff_15794_3-p85268 | C58: 13 | D58: 55712614 | E58: 2.17E-05 | G58: 4.662660561
A59: oleic-3c | B59: Bn-scaff_15794_3-p85516 | C59: 13 | D59: 55712862 | E59: 2.17E-05 | G59: 4.662660561
A60: oleic-3c | B60: Bn-scaff_15794_3-p89442 | C60: 13 | D60: 55716717 | E60: 2.17E-05 | G60: 4.662660561
A61: oleic-2c | B61: Bn-A08-p15620471 | C61: 8 | D61: 13151027 | E61: 2.20E-05 | G61: 4.656670197
A62: oleic-2c | B62: Bn-scaff_15705_3-p253023 | C62: 17 | D62: 36019053 | E62: 2.25E-05 | G62: 4.647914002
A63: oleic-2c | B63: Bn-scaff_22970_1-p137701 | C63: 12 | D63: 1100715 | E63: 2.44E-05 | G63: 4.613340545
A64: oleic-3c | B64: Bn-scaff_15794_3-p154541 | C64: 13 | D64: 55441423 | E64: 2.65E-05 | G64: 4.576836076
A65: oleic-3c | B65: Bn-scaff_15794_3-p154030 | C65: 13 | D65: 55441934 | E65: 2.65E-05 | G65: 4.576836076
A66: oleic-3c | B66: Bn-scaff_15794_3-p33848 | C66: 13 | D66: 55541769 | E66: 2.65E-05 | G66: 4.576836076
A67: oleic-3c | B67: Bn-scaff_15794_3-p29807 | C67: 13 | D67: 55549750 | E67: 2.65E-05 | G67: 4.576836076
A68: oleic-3c | B68: Bn-scaff_15794_3-p75109 | C68: 13 | D68: 55706691 | E68: 2.65E-05 | G68: 4.576836076
A69: oleic-3c | B69: Bn-scaff_15794_3-p84885 | C69: 13 | D69: 55712232 | E69: 2.65E-05 | G69: 4.576836076
A70: oleic-3c | B70: Bn-scaff_15794_3-p89166 | C70: 13 | D70: 55716441 | E70: 2.65E-05 | G70: 4.576836076
A71: oleic-3c | B71: Bn-scaff_15794_3-p89881 | C71: 13 | D71: 55717233 | E71: 2.65E-05 | G71: 4.576836076
A72: oleic-2c | B72: Bn-scaff_22970_1-p41695 | C72: 12 | D72: 1177562 | E72: 2.85E-05 | G72: 4.545475264
A73: oleic-2c | B73: Bn-scaff_22970_1-p374054 | C73: 12 | D73: 940796 | E73: 2.94E-05 | G73: 4.532081267
A74: oleic-2c | B74: Bn-scaff_22970_1-p138277 | C74: 12 | D74: 1100138 | E74: 3.59E-05 | G74: 4.444385677
A75: oleic-2c | B75: Bn-scaff_22970_1-p138145 | C75: 12 | D75: 1100270 | E75: 3.59E-05 | G75: 4.444385677
A76: oleic-2c | B76: Bn-scaff_22970_1-p137256 | C76: 12 | D76: 1101161 | E76: 3.59E-05 | G76: 4.444385677
A77: oleic-2c | B77: Bn-scaff_22970_1-p137005 | C77: 12 | D77: 1101414 | E77: 3.59E-05 | G77: 4.444385677
A78: oleic-3c | B78: Bn-scaff_15794_3-p83984 | C78: 13 | D78: 55711337 | E78: 4.23E-05 | G78: 4.373269661
A79: oleic-2c | B79: Bn-scaff_22970_1-p136203 | C79: 12 | D79: 1102226 | E79: 4.49E-05 | G79: 4.347773004
A80: oleic-2c | B80: Bn-scaff_16110_1-p2540852 | C80: 17 | D80: 42354412 | E80: 4.74E-05 | G80: 4.324212496
A81: oleic-3c | B81: Bn-scaff_15794_3-p153296 | C81: 13 | D81: 55442666 | E81: 5.09E-05 | G81: 4.292889909
A82: oleic-2c | B82: Bn-A08-p1584455 | C82: 2 | D82: 19947136 | E82: 5.20E-05 | G82: 4.283888096
A83: oleic-3c | B83: Bn-scaff_15794_3-p147011 | C83: 13 | D83: 55448897 | E83: 5.54E-05 | G83: 4.256568635
A84: oleic-2c | B84: Bn-A08-p1584454 | C84: 2 | D84: 19947136 | E84: 5.79E-05 | G84: 4.23712646
A85: oleic-3c | B85: Bn-scaff_15794_3-p146954 | C85: 13 | D85: 55448954 | E85: 6.07E-05 | G85: 4.216568115
A86: oleic-2c | B86: Bn-A08-p12699181 | C86: 8 | D86: 10374054 | E86: 6.15E-05 | G86: 4.210856623
A87: oleic-2c | B87: Bn-scaff_22835_1-p599826 | C87: 18 | D87: 29287926 | E87: 6.25E-05 | G87: 4.204411927
A88: oleic-2c | B88: Bn-Scaffold000320-p11480 | C88: 8 | D88: 10821343 | E88: 7.12E-05 | G88: 4.147818992
A89: oleic-2c | B89: Bn-A02-p25615285 | C89: 2 | D89: 23644817 | E89: 7.33E-05 | G89: 4.134653173
A90: oleic-1c | B90: Bn-A02-p9607756 | C90: 2 | D90: 6411341 | E90: 8.39E-05 | G90: 4.076476216
A91: oleic-3c | B91: Bn-A08-p12940197 | C91: 8 | D91: 10716400 | E91: 9.19E-05 | G91: 4.036457713
A92: oleic-2c | B92: Bn-scaff_17457_1-p188816 | C92: 13 | D92: 54356037 | E92: 9.27E-05 | G92: 4.032704812
A93: oleic-3c | B93: Bn-scaff_15794_3-p9180 | C93: 13 | D93: 55570415 | E93: 1.08E-04 | G93: 3.967340954
A94: oleic-2c | B94: Bn-scaff_15918_1-p196704 | C94: 12 | D94: 42155698 | E94: 1.12E-04 | G94: 3.948886083
A95: oleic-2c | B95: Bn-A06-p2778072 | C95: 6 | D95: 2690612 | E95: 1.25E-04 | G95: 3.902916304
A96: oleic-2c | B96: Bn-A06-p2778829 | C96: 6 | D96: 2691369 | E96: 1.25E-04 | G96: 3.902916304
A97: oleic-2c | B97: Bn-A06-p2778837 | C97: 6 | D97: 2691377 | E97: 1.25E-04 | G97: 3.902916304
A98: oleic-2c | B98: Bn-scaff_17821_1-p119310 | C98: 8 | D98: 10883842 | E98: 1.40E-04 | G98: 3.853406898
A99: oleic-2c | B99: Bn-scaff_17526_1-p1649875 | C99: 19 | D99: 984747 | E99: 1.40E-04 | G99: 3.852601961
A100: oleic-2c | B100: Bn-scaff_22970_1-p364419 | C100: 12 | D100: 949829 | E100: 1.48E-04 | G100: 3.829181102
A101: oleic-2c | B101: Bn-scaff_15918_1-p230606 | C101: 12 | D101: 42165343 | E101: 1.69E-04 | G101: 3.772216099
A102: oleic-2c | B102: Bn-scaff_17457_1-p191394 | C102: 13 | D102: 54353693 | E102: 1.77E-04 | G102: 3.75276345
A103: oleic-2c | B103: Bn-scaff_17457_1-p188947 | C103: 13 | D103: 54355906 | E103: 1.77E-04 | G103: 3.75276345
A104: oleic-2c | B104: Bn-A08-p15802943 | C104: 8 | D104: 13299987 | E104: 1.84E-04 | G104: 3.734027169
A105: oleic-1c | B105: Bn-scaff_17441_1-p986906 | C105: 15 | D105: 40102890 | E105: 1.92E-04 | G105: 3.715907809
A106: oleic-2c | B106: Bn-scaff_16110_1-p2523925 | C106: 17 | D106: 42376997 | E106: 1.99E-04 | G106: 3.701059637
A107: oleic-3c | B107: Bn-A06-p21826830 | C107: 6 | D107: 20843498 | E107: 2.19E-04 | G107: 3.66036971
A108: oleic-2c | B108: Bn-scaff_18360_1-p915562 | C108: 2 | D108: 19044017 | E108: 2.40E-04 | G108: 3.619155874
A109: oleic-2c | B109: Bn-A04-p16137916 | C109: 4 | D109: 16333557 | E109: 2.43E-04 | G109: 3.614500973
A110: oleic-2c | B110: Bn-A01-p23330944 | C110: 1 | D110: 19203801 | E110: 2.50E-04 | G110: 3.601330989
A111: oleic-2c | B111: Bn-scaff_16110_1-p2522717 | C111: 17 | D111: 42378059 | E111: 2.79E-04 | G111: 3.555159207
A112: oleic-1c | B112: Bn-A05-p5264904 | C112: 5 | D112: 5052125 | E112: 2.80E-04 | G112: 3.553229905
A113: oleic-3c | B113: Bn-A03-p2412263 | C113: 3 | D113: 1971697 | E113: 2.91E-04 | G113: 3.53543594
A114: oleic-2c | B114: Bn-scaff_17042_1-p711807 | C114: 13 | D114: 53879151 | E114: 3.13E-04 | G114: 3.50477491
A115: oleic-2c | B115: Bn-scaff_17457_1-p505494 | C115: 13 | D115: 53910265 | E115: 3.13E-04 | G115: 3.50477491
A116: oleic-2c | B116: Bn-scaff_17457_1-p244526 | C116: 13 | D116: 54300314 | E116: 3.16E-04 | G116: 3.500244205
A117: oleic-2c | B117: Bn-A03-p9765623 | C117: 3 | D117: 8996660 | E117: 3.25E-04 | G117: 3.487862818
A118: oleic-2c | B118: Bn-A09-p19145862 | C118: 9 | D118: 15859344 | E118: 3.36E-04 | G118: 3.474139227
A119: oleic-2c | B119: Bn-scaff_17440_1-p261914 | C119: 13 | D119: 48210214 | E119: 3.36E-04 | G119: 3.473453965
A120: oleic-2c | B120: Bn-A02-p7439205 | C120: 2 | D120: 4460530 | E120: 3.48E-04 | G120: 3.458395797
A121: oleic-2c | B121: Bn-A06-p8988728 | C121: 6 | D121: 8463642 | E121: 3.65E-04 | G121: 3.437980887
A122: oleic-2c | B122: Bn-A07-p8724769 | C122: 7 | D122: 10152249 | E122: 3.80E-04 | G122: 3.420422171
A123: oleic-1c | B123: Bn-A07-p7009935 | C123: 7 | D123: 8910847 | E123: 3.98E-04 | G123: 3.400651941
A124: oleic-2c | B124: Bn-A07-p16095589 | C124: 7 | D124: 17996553 | E124: 3.99E-04 | G124: 3.399538981
A125: oleic-2c | B125: Bn-A01-p9030262 | C125: 9 | D125: 2563530 | E125: 4.00E-04 | G125: 3.397885725
A126: oleic-2c | B126: Bn-A03-p24688180 | C126: 3 | D126: 23155012 | E126: 4.12E-04 | G126: 3.385134409
A127: oleic-2c | B127: Bn-Scaffold000191-p11670 | C127: 5 | D127: 22464190 | E127: 4.15E-04 | G127: 3.381972834
A128: oleic-3c | B128: Bn-scaff_16996_1-p283285 | C128: 13 | D128: 56375282 | E128: 4.28E-04 | G128: 3.368556231
A129: oleic-2c | B129: Bn-scaff_15918_1-p229935 | C129: 12 | D129: 42160461 | E129: 4.45E-04 | G129: 3.352059847
A130: oleic-3c | B130: Bn-A04-p15441336 | C130: 4 | D130: 15852496 | E130: 4.46E-04 | G130: 3.350266085
A131: oleic-2c | B131: Bn-scaff_25466_1-p141780 | C131: 16 | D131: 33064144 | E131: 4.92E-04 | G131: 3.3082468
A132: oleic-1c | B132: Bn-A01-p8593291 | C132: 4 | D132: 2398257 | E132: 4.92E-04 | G132: 3.30792016
A133: oleic-1c | B133: Bn-scaff_25684_1-p3459 | C133: 16 | D133: 11069641 | E133: 4.93E-04 | G133: 3.307082613
A134: oleic-2c | B134: Bn-A04-p4204775 | C134: 4 | D134: 4257542 | E134: 4.96E-04 | G134: 3.304658441
A135: oleic-1c | B135: Bn-A03-p22655575 | C135: 17 | D135: 36853839 | E135: 4.98E-04 | G135: 3.303058538
A136: oleic-2c | B136: Bn-scaffold17782-p431 | C136: 15 | D136: 1433383 | E136: 5.34E-04 | G136: 3.272735348
A137: oleic-3c | B137: Bn-scaff_21131_1-p266157 | C137: 12 | D137: 33584113 | E137: 5.38E-04 | G137: 3.269298456
A138: oleic-3c | B138: Bn-A08-p17462017 | C138: 8 | D138: 14922633 | E138: 5.52E-04 | G138: 3.258131737
A139: oleic-3c | B139: Bn-scaff_21131_1-p281320 | C139: 12 | D139: 33566807 | E139: 5.64E-04 | G139: 3.248597709
A140: oleic-3c | B140: Bn-scaff_21131_1-p264106 | C140: 12 | D140: 33586164 | E140: 5.64E-04 | G140: 3.248597709
A141: oleic-2c | B141: Bn-A04-p18152854 | C141: 4 | D141: 18236815 | E141: 5.95E-04 | G141: 3.225731273
A142: oleic-2c | B142: Bn-A08-p12767403 | C142: 8 | D142: 10460989 | E142: 5.97E-04 | G142: 3.224105697
A143: oleic-2c | B143: Bn-A06-p3031327 | C143: 6 | D143: 2919668 | E143: 5.98E-04 | G143: 3.223182632
A144: oleic-2c | B144: Bn-A04-p14756394 | C144: 4 | D144: 15205607 | E144: 6.01E-04 | G144: 3.221443597
A145: oleic-2c | B145: Bn-scaff_15918_1-p230701 | C145: 12 | D145: 42165438 | E145: 6.02E-04 | G145: 3.220093409
A146: oleic-2c | B146: Bn-scaff_15705_3-p234984 | C146: 17 | D146: 36007666 | E146: 6.05E-04 | G146: 3.218359495
A147: oleic-2c | B147: Bn-scaff_16804_1-p64080 | C147: 2 | D147: 3853724 | E147: 6.35E-04 | G147: 3.197363082
A148: oleic-2c | B148: Bn-A04-p16892915 | C148: 4 | D148: 17100371 | E148: 6.39E-04 | G148: 3.194471957
A149: oleic-2c | B149: Bn-scaff_17119_1-p410774 | C149: 13 | D149: 57154659 | E149: 6.41E-04 | G149: 3.192864273
A150: oleic-1c | B150: Bn-A07-p5835036 | C150: 7 | D150: 7782322 | E150: 6.48E-04 | G150: 3.188284273
A151: oleic-2c | B151: Bn-A04-p15441336 | C151: 4 | D151: 15852496 | E151: 6.49E-04 | G151: 3.187474341
A152: oleic-3c | B152: Bn-scaff_17457_1-p505494 | C152: 13 | D152: 53910265 | E152: 6.57E-04 | G152: 3.18254702
A153: oleic-3c | B153: Bn-scaff_16876_1-p285536 | C153: 14 | D153: 34602019 | E153: 6.82E-04 | G153: 3.166209257
A154: oleic-2c | B154: Bn-A04-p17864572 | C154: 4 | D154: 17973221 | E154: 6.86E-04 | G154: 3.163739197
A155: oleic-3c | B155: Bn-A08-p1584454 | C155: 2 | D155: 19947136 | E155: 6.88E-04 | G155: 3.16224116
A156: oleic-3c | B156: Bn-A08-p15620471 | C156: 8 | D156: 13151027 | E156: 6.93E-04 | G156: 3.159354511
A157: oleic-3c | B157: Bn-A08-p1584455 | C157: 2 | D157: 19947136 | E157: 7.01E-04 | G157: 3.154405907
A158: oleic-2c | B158: Bn-A07-p12685266 | C158: 7 | D158: 14783275 | E158: 7.16E-04 | G158: 3.14488686
A159: oleic-2c | B159: Bn-scaff_15918_1-p83785 | C159: 12 | D159: 42090982 | E159: 7.31E-04 | G159: 3.136011336
A160: oleic-3c | B160: Bn-A08-p19690298 | C160: 8 | D160: 17012925 | E160: 7.33E-04 | G160: 3.134884176
A161: oleic-3c | B161: Bn-scaff_17526_1-p1649875 | C161: 19 | D161: 984747 | E161: 7.37E-04 | G161: 3.132809559
A162: oleic-2c | B162: Bn-A07-p1227140 | C162: 7 | D162: 861713 | E162: 7.39E-04 | G162: 3.131273294
A163: oleic-2c | B163: Bn-scaff_26139_1-p376956 | C163: 18 | D163: 35713175 | E163: 7.40E-04 | G163: 3.131050076
A164: oleic-3c | B164: Bn-scaff_18439_1-p983285 | C164: 16 | D164: 13109884 | E164: 7.44E-04 | G164: 3.128707345
A165: oleic-3c | B165: Bn-scaff_18439_1-p954785 | C165: 16 | D165: 13082177 | E165: 7.48E-04 | G165: 3.126272619
A166: oleic-3c | B166: Bn-scaff_18439_1-p955646 | C166: 16 | D166: 13083038 | E166: 7.48E-04 | G166: 3.126272619
A167: oleic-3c | B167: Bn-scaff_18439_1-p974231 | C167: 16 | D167: 13100830 | E167: 7.48E-04 | G167: 3.126272619
A168: oleic-3c | B168: Bn-scaff_18439_1-p978904 | C168: 16 | D168: 13105503 | E168: 7.48E-04 | G168: 3.126272619
A169: oleic-3c | B169: Bn-scaff_18439_1-p983565 | C169: 16 | D169: 13110164 | E169: 7.48E-04 | G169: 3.126272619
A170: oleic-3c | B170: Bn-scaff_18439_1-p987338 | C170: 16 | D170: 13113937 | E170: 7.48E-04 | G170: 3.126272619
A171: oleic-3c | B171: Bn-A05-p8206349 | C171: 8 | D171: 17620390 | E171: 7.57E-04 | G171: 3.121013138
A172: oleic-3c | B172: Bn-scaff_16876_1-p378895 | C172: 14 | D172: 34534807 | E172: 7.60E-04 | G172: 3.119323575
A173: oleic-3c | B173: Bn-scaff_16876_1-p367934 | C173: 14 | D173: 34539263 | E173: 7.73E-04 | G173: 3.111859836
A174: oleic-2c | B174: Bn-scaff_16148_1-p21352 | C174: 13 | D174: 58918468 | E174: 7.79E-04 | G174: 3.108518296
A175: oleic-3c | B175: Bn-scaff_18439_1-p963598 | C175: 16 | D175: 13090206 | E175: 7.83E-04 | G175: 3.106243785
A176: oleic-2c | B176: Bn-A03-p755100 | C176: 13 | D176: 801873 | E176: 8.07E-04 | G176: 3.093045749
A177: oleic-3c | B177: Bn-A02-p19375860 | C177: 2 | D177: 18337626 | E177: 8.08E-04 | G177: 3.09238444
A178: oleic-3c | B178: Bn-scaff_18439_1-p999056 | C178: 16 | D178: 13126310 | E178: 8.13E-04 | G178: 3.089738548
A179: oleic-1c | B179: Bn-A05-p5344859 | C179: 5 | D179: 5120232 | E179: 8.18E-04 | G179: 3.087262624
A180: oleic-3c | B180: Bn-A10-p13330145 | C180: 10 | D180: 13374816 | E180: 8.21E-04 | G180: 3.085868487
A181: oleic-1c | B181: Bn-A05-p5662601 | C181: 5 | D181: 5420021 | E181: 8.21E-04 | G181: 3.08585261
A182: oleic-2c | B182: Bn-scaff_20221_1-p84872 | C182: 12 | D182: 24189052 | E182: 8.22E-04 | G182: 3.085085917
A183: oleic-3c | B183: Bn-scaff_18439_1-p954410 | C183: 16 | D183: 13081802 | E183: 8.26E-04 | G183: 3.082925323
A184: oleic-2c | B184: Bn-A01-p1373104 | C184: 1 | D184: 974209 | E184: 8.49E-04 | G184: 3.071337917
A185: oleic-3c | B185: Bn-scaff_18439_1-p998299 | C185: 16 | D185: 13125553 | E185: 8.49E-04 | G185: 3.070872405
A186: oleic-3c | B186: Bn-A05-p7052463 | C186: 5 | D186: 6479726 | E186: 8.59E-04 | G186: 3.065774331
A187: oleic-1c | B187: Bn-scaff_16217_1-p181427 | C187: 14 | D187: 22294107 | E187: 8.61E-04 | G187: 3.064996849
A188: oleic-3c | B188: Bn-A08-p17461463 | C188: 8 | D188: 14922079 | E188: 8.71E-04 | G188: 3.059951929
A189: oleic-2c | B189: Bn-scaff_16110_1-p214256 | C189: 8 | D189: 5357891 | E189: 8.71E-04 | G189: 3.059867178
A190: oleic-2c | B190: Bn-A05-p18820057 | C190: 5 | D190: 17078448 | E190: 8.86E-04 | G190: 3.052576082
A191: oleic-2c | B191: Bn-scaff_25466_1-p141048 | C191: 16 | D191: 33064876 | E191: 8.86E-04 | G191: 3.052326159
A192: oleic-1c | B192: Bn-A07-p6244683 | C192: 7 | D192: 8173848 | E192: 8.88E-04 | G192: 3.051763135
A193: oleic-3c | B193: Bn-scaff_17042_1-p711807 | C193: 13 | D193: 53879151 | E193: 8.96E-04 | G193: 3.047459395
A194: oleic-1c | B194: Bn-A07-p5620067 | C194: 7 | D194: 7587359 | E194: 8.99E-04 | G194: 3.046269294
A195: oleic-2c | B195: Bn-A05-p18819337 | C195: 5 | D195: 17077728 | E195: 9.03E-04 | G195: 3.044360347
A196: oleic-2c | B196: Bn-A06-p4508774 | C196: 6 | D196: 4320835 | E196: 9.21E-04 | G196: 3.035674358
A197: oleic-2c | B197: Bn-scaff_17369_1-p35079 | C197: 11 | D197: 12373422 | E197: 9.23E-04 | G197: 3.034591317
A198: oleic-3c | B198: Bn-scaff_15712_6-p1205675 | C198: 12 | D198: 38012742 | E198: 9.30E-04 | G198: 3.031605787
A199: oleic-2c | B199: Bn-A02-p19385896 | C199: 2 | D199: 18338756 | E199: 9.37E-04 | G199: 3.028459758
A200: oleic-2c | B200: Bn-A07-p8668003 | C200: 7 | D200: 10097697 | E200: 9.47E-04 | G200: 3.023682124
... 4300 more rows

Sheet Sheet2 (hidden)
B1: FLC-2
A2: 1 | B2: 1-1
A3: 2 | B3: 1-2
A4: 3 | B4: 1-4
A5: 4 | B5: 2-1
A6: 5 | B6: 4-1
A7: 6 | B7: 4-2
A8: 7 | B8: 10-1
A9: 8 | B9: 10-2
A10: 9 | B10: 17-1
A11: 10 | B11: 20-1
A12: 11 | B12: 12
A13: 12 | B13: 13
A14: 13 | B14: 14
A15: 14 | B15: 22
A16: 15 | B16: 23
A17: 16 | B17: 24

Sheet Sheet4 (hidden)
A1: rs# | B1: alleles | C1: chrom | D1: pos | E1: strand | F1: assembly# | G1: center | H1: protLSID | I1: assayLSID | J1: panelLSID | K1: QCcode | L1: 5A053 | M1: 5A054 | N1: 5A055 | O1: 5A056 | P1: 5A057 | Q1: 5A058 | R1: 5A060 | S1: 5A062 | T1: 5A064 | U1: 5A068 | V1: 5A069 | W1: 5A072 | X1: 5A074 | Y1: 5A075 | Z1: 5A076 | AA1: 5A077 | AB1: 5A078 | AC1: 5A079 | AD1: 5A080 | AE1: 5A082 | AF1: 5A083 | AG1: 5A084 | AH1: 5A086 | AI1: 5A087 | AJ1: 5A088 | AK1: 5A089 | AL1: 5A090 | AM1: 5A091 | AN1: 5A094 | AO1: 5A095 | AP1: 5A096 | AQ1: 5A097 | AR1: 5A098 | AS1: 5A099 | AT1: 5A101 | AU1: 5A102 | AV1: 5A103 | AW1: 5F016 | AX1: 5F017 | AY1: 5F018 | AZ1: 5F019 | BA1: 5F020 | BB1: 5F021 | BC1: 5F022 | BD1: 5F023 | BE1: 5F024 | BF1: 5F025 | BG1: 5F026 | BH1: 5F027 | BI1: 5F028 | BJ1: 5F029 | BK1: 5F030 | BL1: 5A125 | BM1: 5A126 | BN1: 5A127 | BO1: 5A128 | BP1: 5A129 | BQ1: 5A130 | BR1: 5A132 | BS1: 5A133 | BT1: 5A134 | BU1: 5A135 | BV1: 5A137 | BW1: 5A138 | BX1: 5A140 | BY1: 5A141 | BZ1: 5A142 | CA1: 5A143 | CB1: 5A146 | CC1: 5A149 | CD1: 5A150 | CE1: 5A153 | CF1: 5A154 | CG1: 5A156 | CH1: 5A157 | CI1: 5A158 | CJ1: 5A159 | CK1: 5A160 | CL1: 5A161 | CM1: 5A162 | CN1: 5A163 | CO1: 5A165 | CP1: 5A166 | CQ1: 5A168 | CR1: 5A169 | CS1: 5A170 | CT1: 5A171 | CU1: 5A173 | CV1: 5A175 | CW1: 5A176 | CX1: 5F031 | CY1: 5F032 | CZ1: 5F033 | DA1: 5F034 | DB1: 5F035 | DC1: 5F036 | DD1: 5F037 | DE1: 5F038 | DF1: 5F039 | DG1: 5F040 | DH1: 5F041 | DI1: 5F042 | DJ1: 5F043 | DK1: 5A001 | DL1: 5A003 | DM1: 5A004 | DN1: 5A005 | DO1: 5A007 | DP1: 5A008 | DQ1: 5A009 | DR1: 5A010 | DS1: 5A011 | DT1: 5A012 | DU1: 5A013 | DV1: 5A014 | DW1: 5A015 | DX1: 5A016 | DY1: 5A018 | DZ1: 5A021 | EA1: 5A023 | EB1: 5A027 | EC1: 5A028 | ED1: 5A030 | EE1: 5A031 | EF1: 5A033 | EG1: 5A034 | EH1: 5A035 | EI1: 5A036 | EJ1: 5A037 | EK1: 5A038 | EL1: 5A039 | EM1: 5A042 | EN1: 5A044 | EO1: 5A046 | EP1: 5A047 | EQ1: 5A048 | ER1: 5A049 | ES1: 5A050 | ET1: 5A051 | EU1: 5A104 | EV1: 5A105 | EW1: 5A106 | EX1: 5F001 | EY1: 5F002 | EZ1: 5F003 | FA1: 5F004 | FB1: 5F005 | FC1: 5F006 | FD1: 5F007 | FE1: 5F008 | FF1: 5F009 | FG1: 5F010 | FH1: 5F011 | FI1: 5F012 | FJ1: 5F013 | FK1: 5F014 | FL1: 5F015
A2: rs.C01.16855515 | B2: C/G | C2: 11 | D2: 16855515 | E2: + | F2: NA | G2: NA | H2: NA | I2: NA | J2: NA | K2: NA | L2: CC | M2: CC | N2: CC | O2: CC | P2: CC | Q2: CC | R2: CC | S2: GC | T2: GC | U2: CC | V2: CC | W2: CC | X2: CC | Y2: CC | Z2: GG | AA2: CC | AB2: CC | AC2: CC | AD2: GC | AE2: CC | AF2: CC | AG2: CC | AH2: CC | AI2: CC | AJ2: CC | AK2: CC | AL2: CC | AM2: CC | AN2: CC | AO2: CC | AP2: CC | AQ2: CC | AR2: CC | AS2: CC | AT2: CC | AU2: CC | AV2: CC | AW2: CC | AX2: CC | AY2: GC | AZ2: CC | BA2: CC | BB2: CC | BC2: CC | BD2: CC | BE2: CC | BF2: CC | BG2: CC | BH2: CC | BI2: CC | BJ2: CC | BK2: CC | BL2: CC | BM2: CC | BN2: CC | BO2: CC | BP2: CC | BQ2: CC | BR2: CC | BS2: CC | BT2: CC | BU2: CC | BV2: CC | BW2: CC | BX2: CC | BY2: CC | BZ2: CC | CA2: CC | CB2: CC | CC2: CC | CD2: CC | CE2: CC | CF2: CC | CG2: CC | CH2: CC | CI2: CC | CJ2: CC | CK2: CC | CL2: CC | CM2: CC | CN2: CC | CO2: CC | CP2: GC | CQ2: CC | CR2: CC | CS2: CC | CT2: CC | CU2: CC | CV2: CC | CW2: CC | CX2: CC | CY2: CC | CZ2: CC | DA2: CC | DB2: GG | DC2: CC | DD2: GC | DE2: CC | DF2: CC | DG2: CC | DH2: CC | DI2: CC | DJ2: CC | DK2: CC | DL2: GC | DM2: CC | DN2: CC | DO2: GC | DP2: CC | DQ2: CC | DR2: CC | DS2: GC | DT2: CC | DU2: CC | DV2: CC | DW2: GC | DX2: GC | DY2: CC | DZ2: CC | EA2: GC | EB2: CC | EC2: CC | ED2: CC | EE2: CC | EF2: CC | EG2: CC | EH2: GC | EI2: CC | EJ2: GG | EK2: GC | EL2: CC | EM2: CC | EN2: CC | EO2: CC | EP2: GC | EQ2: CC | ER2: GC | ES2: GC | ET2: CC | EU2: CC | EV2: GC | EW2: CC | EX2: CC | EY2: CC | EZ2: GC | FA2: GC | FB2: CC | FC2: CC | FD2: GC | FE2: CC | FF2: CC | FG2: CC | FH2: CC | FI2: CC | FJ2: CC | FK2: CC | FL2: CC
A3: rs.C01.16855888 | B3: T/A | C3: 11 | D3: 16855888 | E3: + | F3: NA | G3: NA | H3: NA | I3: NA | J3: NA | K3: NA | L3: TT | M3: TT | N3: TT | O3: TT | P3: TT | Q3: TT | R3: TT | S3: TT | T3: TT | U3: TT | V3: TT | W3: TT | X3: TT | Y3: TT | Z3: TT | AA3: TT | AB3: TT | AC3: TT | AD3: TT | AE3: TT | AF3: TT | AG3: TT | AH3: TT | AI3: TT | AJ3: TT | AK3: TT | AL3: TT | AM3: TT | AN3: TT | AO3: TT | AP3: AA | AQ3: TT | AR3: TT | AS3: TT | AT3: TT | AU3: TT | AV3: TT | AW3: TT | AX3: AA | AY3: TT | AZ3: TT | BA3: TT | BB3: TT | BC3: TT | BD3: TT | BE3: TT | BF3: TT | BG3: TT | BH3: TT | BI3: TT | BJ3: TT | BK3: TT | BL3: TT | BM3: TT | BN3: TT | BO3: TT | BP3: TT | BQ3: TT | BR3: AA | BS3: TT | BT3: TT | BU3: AT | BV3: AA | BW3: TT | BX3: TT | BY3: TT | BZ3: AA | CA3: TT | CB3: TT | CC3: TT | CD3: AA | CE3: TT | CF3: AA | CG3: TT | CH3: TT | CI3: AA | CJ3: AA | CK3: AA | CL3: TT | CM3: TT | CN3: TT | CO3: TT | CP3: TT | CQ3: TT | CR3: TT | CS3: AA | CT3: AT | CU3: AA | CV3: TT | CW3: AA | CX3: AA | CY3: TT | CZ3: TT | DA3: TT | DB3: TT | DC3: TT | DD3: TT | DE3: TT | DF3: TT | DG3: TT | DH3: AT | DI3: TT | DJ3: TT | DK3: TT | DL3: TT | DM3: TT | DN3: TT | DO3: TT | DP3: TT | DQ3: TT | DR3: TT | DS3: TT | DT3: TT | DU3: TT | DV3: TT | DW3: TT | DX3: TT | DY3: TT | DZ3: TT | EA3: TT | EB3: TT | EC3: TT | ED3: TT | EE3: TT | EF3: TT | EG3: TT | EH3: TT | EI3: TT | EJ3: TT | EK3: AT | EL3: TT | EM3: TT | EN3: TT | EO3: TT | EP3: TT | EQ3: TT | ER3: TT | ES3: TT | ET3: TT | EU3: TT | EV3: TT | EW3: TT | EX3: TT | EY3: TT | EZ3: TT | FA3: TT | FB3: TT | FC3: TT | FD3: TT | FE3: TT | FF3: TT | FG3: TT | FH3: TT | FI3: TT | FJ3: TT | FK3: TT | FL3: TT
A4: BnaC01g23180D
A5: rs.C01.16879307 | B5: G/A | C5: 11 | D5: 16879307 | E5: + | F5: NA | G5: NA | H5: NA | I5: NA | J5: NA | K5: NA | L5: GG | M5: GG | N5: GG | O5: GG | P5: GG | Q5: GG | R5: GG | S5: GG | T5: GG | U5: GG | V5: GG | W5: GG | X5: GG | Y5: GG | Z5: GG | AA5: AG | AB5: GG | AC5: GG | AD5: GG | AE5: GG | AF5: GG | AG5: GG | AH5: GG | AI5: GG | AJ5: GG | AK5: GG | AL5: GG | AM5: GG | AN5: GG | AO5: GG | AP5: GG | AQ5: AG | AR5: GG | AS5: GG | AT5: GG | AU5: GG | AV5: GG | AW5: GG | AX5: GG | AY5: GG | AZ5: AG | BA5: GG | BB5: GG | BC5: GG | BD5: GG | BE5: GG | BF5: GG | BG5: GG | BH5: GG | BI5: GG | BJ5: GG | BK5: GG | BL5: AG | BM5: GG | BN5: AG | BO5: GG | BP5: GG | BQ5: GG | BR5: AG | BS5: AG | BT5: GG | BU5: AG | BV5: AG | BW5: GG | BX5: GG | BY5: GG | BZ5: GG | CA5: GG | CB5: GG | CC5: AG | CD5: GG | CE5: GG | CF5: GG | CG5: GG | CH5: AG | CI5: GG | CJ5: GG | CK5: AG | CL5: GG | CM5: GG | CN5: GG | CO5: GG | CP5: GG | CQ5: GG | CR5: GG | CS5: GG | CT5: GG | CU5: GG | CV5: GG | CW5: AG | CX5: GG | CY5: AG | CZ5: AG | DA5: GG | DB5: GG | DC5: GG | DD5: GG | DE5: GG | DF5: GG | DG5: GG | DH5: GG | DI5: AG | DJ5: GG | DK5: GG | DL5: GG | DM5: GG | DN5: GG | DO5: GG | DP5: GG | DQ5: GG | DR5: GG | DS5: GG | DT5: GG | DU5: GG | DV5: GG | DW5: GG | DX5: GG | DY5: GG | DZ5: GG | EA5: GG | EB5: GG | EC5: GG | ED5: GG | EE5: GG | EF5: GG | EG5: GG | EH5: GG | EI5: GG | EJ5: GG | EK5: GG | EL5: GG | EM5: GG | EN5: GG | EO5: GG | EP5: GG | EQ5: GG | ER5: GG | ES5: GG | ET5: GG | EU5: GG | EV5: GG | EW5: GG | EX5: GG | EY5: GG | EZ5: GG | FA5: GG | FB5: GG | FC5: GG | FD5: GG | FE5: GG | FF5: GG | FG5: GG | FH5: GG | FI5: GG | FJ5: GG | FK5: GG | FL5: AG
A6: BnaC01g23220D
A7: rs.C01.16903196 | B7: T/A | C7: 11 | D7: 16903196 | E7: + | F7: NA | G7: NA | H7: NA | I7: NA | J7: NA | K7: NA | L7: TT | M7: AT | N7: TT | O7: AT | P7: TT | Q7: TT | R7: TT | S7: AT | T7: TT | U7: AT | V7: TT | W7: TT | X7: TT | Y7: AT | Z7: AT | AA7: AT | AB7: AT | AC7: TT | AD7: TT | AE7: TT | AF7: AT | AG7: AT | AH7: TT | AI7: TT | AJ7: TT | AK7: TT | AL7: TT | AM7: TT | AN7: AT | AO7: AT | AP7: TT | AQ7: TT | AR7: TT | AS7: TT | AT7: AT | AU7: TT | AV7: TT | AW7: AT | AX7: TT | AY7: TT | AZ7: TT | BA7: TT | BB7: TT | BC7: TT | BD7: TT | BE7: AT | BF7: TT | BG7: AT | BH7: TT | BI7: TT | BJ7: AT | BK7: TT | BL7: TT | BM7: TT | BN7: TT | BO7: TT | BP7: TT | BQ7: TT | BR7: TT | BS7: TT | BT7: TT | BU7: TT | BV7: TT | BW7: AT | BX7: TT | BY7: TT | BZ7: TT | CA7: TT | CB7: TT | CC7: TT | CD7: TT | CE7: TT | CF7: TT | CG7: TT | CH7: TT | CI7: AT | CJ7: TT | CK7: TT | CL7: TT | CM7: TT | CN7: TT | CO7: TT | CP7: TT | CQ7: TT | CR7: TT | CS7: TT | CT7: TT | CU7: TT | CV7: TT | CW7: TT | CX7: TT | CY7: TT | CZ7: TT | DA7: TT | DB7: TT | DC7: AT | DD7: TT | DE7: AT | DF7: TT | DG7: AT | DH7: TT | DI7: TT | DJ7: TT | DK7: TT | DL7: TT | DM7: TT | DN7: TT | DO7: TT | DP7: TT | DQ7: TT | DR7: TT | DS7: AT | DT7: TT | DU7: TT | DV7: TT | DW7: TT | DX7: TT | DY7: TT | DZ7: TT | EA7: TT | EB7: TT | EC7: TT | ED7: TT | EE7: TT | EF7: TT | EG7: TT | EH7: TT | EI7: TT | EJ7: TT | EK7: TT | EL7: TT | EM7: TT | EN7: TT | EO7: TT | EP7: TT | EQ7: TT | ER7: AT | ES7: TT | ET7: TT | EU7: TT | EV7: TT | EW7: TT | EX7: TT | EY7: TT | EZ7: TT | FA7: TT | FB7: TT | FC7: TT | FD7: TT | FE7: TT | FF7: TT | FG7: TT | FH7: TT | FI7: TT | FJ7: TT | FK7: TT | FL7: TT
A8: BnaC01g23240D

Sheet Sheet5 (hidden)
A1: rs# | B1: rs.C01.16855515 | C1: rs.C01.16855888 | D1: BnaC01g23180D | E1: rs.C01.16879307 | F1: BnaC01g23220D | G1: rs.C01.16903196 | H1: BnaC01g23240D | I1: BMK ID | J1: 芯片编号 | K1: 样品名称（客户） | L1: Type
A2: 5A001 | B2: CC | C2: TT | E2: GG | G2: TT | I2: R41 | J2: 3P001 | K2: 5A001 | L2: W
A3: 5A003 | B3: GC | C3: TT | E3: GG | G3: TT | I3: R523 | J3: 3P003 | K3: 5A003 | L3: W
A4: 5A004 | B4: CC | C4: TT | E4: GG | G4: TT | I4: R524 | J4: 3P004 | K4: 5A004 | L4: W
A5: 5A005 | B5: CC | C5: TT | E5: GG | G5: TT | I5: R42 | J5: 3P005 | K5: 5A005 | L5: W
A6: 5A007 | B6: GC | C6: TT | E6: GG | G6: TT | I6: R525 | J6: 3P007 | K6: 5A007 | L6: W
A7: 5A008 | B7: CC | C7: TT | E7: GG | G7: TT | I7: R43 | J7: 3P008 | K7: 5A008 | L7: W
A8: 5A009 | B8: CC | C8: TT | E8: GG | G8: TT | I8: R526 | J8: 3P009 | K8: 5A009 | L8: W
A9: 5A010 | B9: CC | C9: TT | E9: GG | G9: TT | I9: R44 | J9: 3P010 | K9: 5A010 | L9: W
A10: 5A011 | B10: GC | C10: TT | E10: GG | G10: AT | I10: R45 | J10: 3P011 | K10: 5A011 | L10: W
A11: 5A012 | B11: CC | C11: TT | E11: GG | G11: TT | I11: R46 | J11: 3P012 | K11: 5A012 | L11: W
A12: 5A013 | B12: CC | C12: TT | E12: GG | G12: TT | I12: R47 | J12: 3P013 | K12: 5A013 | L12: W
A13: 5A014 | B13: CC | C13: TT | E13: GG | G13: TT | I13: R48 | J13: 3P014 | K13: 5A014 | L13: W
A14: 5A015 | B14: GC | C14: TT | E14: GG | G14: TT | I14: R49 | J14: 3P015 | K14: 5A015 | L14: W
A15: 5A016 | B15: GC | C15: TT | E15: GG | G15: TT | I15: R50 | J15: 3P017 | K15: 5A016 | L15: W
A16: 5A018 | B16: CC | C16: TT | E16: GG | G16: TT | I16: R51 | J16: 3P019 | K16: 5A018 | L16: W
A17: 5A021 | B17: CC | C17: TT | E17: GG | G17: TT | I17: R527 | J17: 3P022 | K17: 5A021 | L17: W
A18: 5A023 | B18: GC | C18: TT | E18: GG | G18: TT | I18: R528 | J18: 3P024 | K18: 5A023 | L18: W
A19: 5A027 | B19: CC | C19: TT | E19: GG | G19: TT | I19: R52 | J19: 3P028 | K19: 5A027 | L19: W
A20: 5A028 | B20: CC | C20: TT | E20: GG | G20: TT | I20: R53 | J20: 3P029 | K20: 5A028 | L20: W
A21: 5A030 | B21: CC | C21: TT | E21: GG | G21: TT | I21: R54 | J21: 3P031 | K21: 5A030 | L21: W
A22: 5A031 | B22: CC | C22: TT | E22: GG | G22: TT | I22: R55 | J22: 3P032 | K22: 5A031 | L22: W
A23: 5A033 | B23: CC | C23: TT | E23: GG | G23: TT | I23: R61 | J23: 3P034 | K23: 5A033 | L23: W
A24: 5A034 | B24: CC | C24: TT | E24: GG | G24: TT | I24: R56 | J24: 3P035 | K24: 5A034 | L24: W
A25: 5A035 | B25: GC | C25: TT | E25: GG | G25: TT | I25: R57 | J25: 3P036 | K25: 5A035 | L25: W
A26: 5A036 | B26: CC | C26: TT | E26: GG | G26: TT | I26: R58 | J26: 3P037 | K26: 5A036 | L26: W
A27: 5A037 | B27: GG | C27: TT | E27: GG | G27: TT | I27: R59 | J27: 3P038 | K27: 5A037 | L27: W
A28: 5A038 | B28: GC | C28: AT | E28: GG | G28: TT | I28: R60 | J28: 3P039 | K28: 5A038 | L28: W
A29: 5A039 | B29: CC | C29: TT | E29: GG | G29: TT | I29: R62 | J29: 3P040 | K29: 5A039 | L29: W
A30: 5A042 | B30: CC | C30: TT | E30: GG | G30: TT | I30: R63 | J30: 3P043 | K30: 5A042 | L30: W
A31: 5A044 | B31: CC | C31: TT | E31: GG | G31: TT | I31: R64 | J31: 3P045 | K31: 5A044 | L31: W
A32: 5A046 | B32: CC | C32: TT | E32: GG | G32: TT | I32: R65 | J32: 3P048 | K32: 5A046 | L32: W
A33: 5A047 | B33: GC | C33: TT | E33: GG | G33: TT | I33: R66 | J33: 3P049 | K33: 5A047 | L33: W
A34: 5A048 | B34: CC | C34: TT | E34: GG | G34: TT | I34: R67 | J34: 3P050 | K34: 5A048 | L34: W
A35: 5A049 | B35: GC | C35: TT | E35: GG | G35: AT | I35: R68 | J35: 3P051 | K35: 5A049 | L35: W
A36: 5A050 | B36: GC | C36: TT | E36: GG | G36: TT | I36: R69 | J36: 3P052 | K36: 5A050 | L36: W
A37: 5A051 | B37: CC | C37: TT | E37: GG | G37: TT | I37: R70 | J37: 3P053 | K37: 5A051 | L37: W
A38: 5A053 | B38: CC | C38: TT | E38: GG | G38: TT | I38: R529 | J38: 3P055 | K38: 5A053 | L38: S
A39: 5A054 | B39: CC | C39: TT | E39: GG | G39: AT | I39: R530 | J39: 3P056 | K39: 5A054 | L39: S
A40: 5A055 | B40: CC | C40: TT | E40: GG | G40: TT | I40: R531 | J40: 3P057 | K40: 5A055 | L40: S
A41: 5A056 | B41: CC | C41: TT | E41: GG | G41: AT | I41: R532 | J41: 3P058 | K41: 5A056 | L41: S
A42: 5A057 | B42: CC | C42: TT | E42: GG | G42: TT | I42: R533 | J42: 3P059 | K42: 5A057 | L42: S
A43: 5A058 | B43: CC | C43: TT | E43: GG | G43: TT | I43: R534 | J43: 3P060 | K43: 5A058 | L43: S
A44: 5A060 | B44: CC | C44: TT | E44: GG | G44: TT | I44: R535 | J44: 3P062 | K44: 5A060 | L44: S
A45: 5A062 | B45: GC | C45: TT | E45: GG | G45: AT | I45: R536 | J45: 3P064 | K45: 5A062 | L45: S
A46: 5A064 | B46: GC | C46: TT | E46: GG | G46: TT | I46: R537 | J46: 3P066 | K46: 5A064 | L46: S
A47: 5A068 | B47: CC | C47: TT | E47: GG | G47: AT | I47: R538 | J47: 3P070 | K47: 5A068 | L47: S
A48: 5A069 | B48: CC | C48: TT | E48: GG | G48: TT | I48: R539 | J48: 3P071 | K48: 5A069 | L48: S
A49: 5A072 | B49: CC | C49: TT | E49: GG | G49: TT | I49: R540 | J49: 3P074 | K49: 5A072 | L49: S
A50: 5A074 | B50: CC | C50: TT | E50: GG | G50: TT | I50: R541 | J50: 3P076 | K50: 5A074 | L50: S
A51: 5A075 | B51: CC | C51: TT | E51: GG | G51: AT | I51: R542 | J51: 3P077 | K51: 5A075 | L51: S
A52: 5A076 | B52: GG | C52: TT | E52: GG | G52: AT | I52: R543 | J52: 3P078 | K52: 5A076 | L52: S
A53: 5A077 | B53: CC | C53: TT | E53: AG | G53: AT | I53: R544 | J53: 3P079 | K53: 5A077 | L53: S
A54: 5A078 | B54: CC | C54: TT | E54: GG | G54: AT | I54: R545 | J54: 3P080 | K54: 5A078 | L54: S
A55: 5A079 | B55: CC | C55: TT | E55: GG | G55: TT | I55: R546 | J55: 3P081 | K55: 5A079 | L55: S
A56: 5A080 | B56: GC | C56: TT | E56: GG | G56: TT | I56: R547 | J56: 3P082 | K56: 5A080 | L56: S
A57: 5A082 | B57: CC | C57: TT | E57: GG | G57: TT | I57: R548 | J57: 3P084 | K57: 5A082 | L57: S
A58: 5A083 | B58: CC | C58: TT | E58: GG | G58: AT | I58: R549 | J58: 3P085 | K58: 5A083 | L58: S
A59: 5A084 | B59: CC | C59: TT | E59: GG | G59: AT | I59: R550 | J59: 3P086 | K59: 5A084 | L59: S
A60: 5A086 | B60: CC | C60: TT | E60: GG | G60: TT | I60: R551 | J60: 3P088 | K60: 5A086 | L60: S
A61: 5A087 | B61: CC | C61: TT | E61: GG | G61: TT | I61: R552 | J61: 3P089 | K61: 5A087 | L61: S
A62: 5A088 | B62: CC | C62: TT | E62: GG | G62: TT | I62: R553 | J62: 3P090 | K62: 5A088 | L62: S
A63: 5A089 | B63: CC | C63: TT | E63: GG | G63: TT | I63: R554 | J63: 3P091 | K63: 5A089 | L63: S
A64: 5A090 | B64: CC | C64: TT | E64: GG | G64: TT | I64: R555 | J64: 3P092 | K64: 5A090 | L64: S
A65: 5A091 | B65: CC | C65: TT | E65: GG | G65: TT | I65: R556 | J65: 3P093 | K65: 5A091 | L65: S
A66: 5A094 | B66: CC | C66: TT | E66: GG | G66: AT | I66: R557 | J66: 3P097 | K66: 5A094 | L66: S
A67: 5A095 | B67: CC | C67: TT | E67: GG | G67: AT | I67: R558 | J67: 3P098 | K67: 5A095 | L67: S
A68: 5A096 | B68: CC | C68: AA | E68: GG | G68: TT | I68: R559 | J68: 3P099 | K68: 5A096 | L68: S
A69: 5A097 | B69: CC | C69: TT | E69: AG | G69: TT | I69: R560 | J69: 3P100 | K69: 5A097 | L69: S
A70: 5A098 | B70: CC | C70: TT | E70: GG | G70: TT | I70: R561 | J70: 3P101 | K70: 5A098 | L70: S
A71: 5A099 | B71: CC | C71: TT | E71: GG | G71: TT | I71: R562 | J71: 3P102 | K71: 5A099 | L71: S
A72: 5A101 | B72: CC | C72: TT | E72: GG | G72: AT | I72: R563 | J72: 3P104 | K72: 5A101 | L72: S
A73: 5A102 | B73: CC | C73: TT | E73: GG | G73: TT | I73: R564 | J73: 3P105 | K73: 5A102 | L73: S
A74: 5A103 | B74: CC | C74: TT | E74: GG | G74: TT | I74: R565 | J74: 3P106 | K74: 5A103 | L74: S
A75: 5A104 | B75: CC | C75: TT | E75: GG | G75: TT | I75: R71 | J75: 3B019 | K75: 5A104 | L75: W
A76: 5A105 | B76: GC | C76: TT | E76: GG | G76: TT | I76: R72 | J76: 3B060 | K76: 5A105 | L76: W
A77: 5A106 | B77: CC | C77: TT | E77: GG | G77: TT | I77: R73 | J77: 3B062 | K77: 5A106 | L77: W
A78: 5A125 | B78: CC | C78: TT | E78: AG | G78: TT | I78: R566 | J78: SW211 | K78: 5A125 | L78: SW
A79: 5A126 | B79: CC | C79: TT | E79: GG | G79: TT | I79: R567 | J79: SW065 | K79: 5A126 | L79: SW
A80: 5A127 | B80: CC | C80: TT | E80: AG | G80: TT | I80: R568 | J80: SW094 | K80: 5A127 | L80: SW
A81: 5A128 | B81: CC | C81: TT | E81: GG | G81: TT | I81: R569 | J81: SW170 | K81: 5A128 | L81: SW
A82: 5A129 | B82: CC | C82: TT | E82: GG | G82: TT | I82: R570 | J82: SW172 | K82: 5A129 | L82: SW
A83: 5A130 | B83: CC | C83: TT | E83: GG | G83: TT | I83: R499 | J83: SW046 | K83: 5A130 | L83: SW
A84: 5A132 | B84: CC | C84: AA | E84: AG | G84: TT | I84: R500 | J84: SW239 | K84: 5A132 | L84: SW
A85: 5A133 | B85: CC | C85: TT | E85: AG | G85: TT | I85: R501 | J85: SW215 | K85: 5A133 | L85: SW
A86: 5A134 | B86: CC | C86: TT | E86: GG | G86: TT | I86: R502 | J86: SW034 | K86: 5A134 | L86: SW
A87: 5A135 | B87: CC | C87: AT | E87: AG | G87: TT | I87: R503 | J87: SW164 | K87: 5A135 | L87: SW
A88: 5A137 | B88: CC | C88: AA | E88: AG | G88: TT | I88: R504 | J88: SW098 | K88: 5A137 | L88: SW
A89: 5A138 | B89: CC | C89: TT | E89: GG | G89: AT | I89: R505 | J89: SW038 | K89: 5A138 | L89: SW
A90: 5A140 | B90: CC | C90: TT | E90: GG | G90: TT | I90: R506 | J90: SW136 | K90: 5A140 | L90: SW
A91: 5A141 | B91: CC | C91: TT | E91: GG | G91: TT | I91: R507 | J91: SW040 | K91: 5A141 | L91: SW
A92: 5A142 | B92: CC | C92: AA | E92: GG | G92: TT | I92: R508 | J92: SW205 | K92: 5A142 | L92: SW
A93: 5A143 | B93: CC | C93: TT | E93: GG | G93: TT | I93: R509 | J93: SW149 | K93: 5A143 | L93: SW
A94: 5A146 | B94: CC | C94: TT | E94: GG | G94: TT | I94: R510 | J94: SW144 | K94: 5A146 | L94: SW
A95: 5A149 | B95: CC | C95: TT | E95: AG | G95: TT | I95: R511 | J95: SW092 | K95: 5A149 | L95: SW
A96: 5A150 | B96: CC | C96: AA | E96: GG | G96: TT | I96: R512 | J96: SW061 | K96: 5A150 | L96: SW
A97: 5A153 | B97: CC | C97: TT | E97: GG | G97: TT | I97: R513 | J97: SW206 | K97: 5A153 | L97: SW
A98: 5A154 | B98: CC | C98: AA | E98: GG | G98: TT | I98: R514 | J98: SW224 | K98: 5A154 | L98: SW
A99: 5A156 | B99: CC | C99: TT | E99: GG | G99: TT | I99: R515 | J99: SW139 | K99: 5A156 | L99: SW
A100: 5A157 | B100: CC | C100: TT | E100: AG | G100: TT | I100: R516 | J100: SW036 | K100: 5A157 | L100: SW
A101: 5A158 | B101: CC | C101: AA | E101: GG | G101: AT | I101: R517 | J101: SW185 | K101: 5A158 | L101: SW
A102: 5A159 | B102: CC | C102: AA | E102: GG | G102: TT | I102: R518 | J102: SW158 | K102: 5A159 | L102: SW
A103: 5A160 | B103: CC | C103: AA | E103: AG | G103: TT | I103: R519 | J103: SW134 | K103: 5A160 | L103: SW
A104: 5A161 | B104: CC | C104: TT | E104: GG | G104: TT | I104: R520 | J104: SW191 | K104: 5A161 | L104: SW
A105: 5A162 | B105: CC | C105: TT | E105: GG | G105: TT | I105: R521 | J105: SW181 | K105: 5A162 | L105: SW
A106: 5A163 | B106: CC | C106: TT | E106: GG | G106: TT | I106: R522 | J106: SW141 | K106: 5A163 | L106: SW
A107: 5A165 | B107: CC | C107: TT | E107: GG | G107: TT | I107: R571 | J107: SW157 | K107: 5A165 | L107: SW
A108: 5A166 | B108: GC | C108: TT | E108: GG | G108: TT | I108: R572 | J108: SW212 | K108: 5A166 | L108: SW
A109: 5A168 | B109: CC | C109: TT | E109: GG | G109: TT | I109: R573 | J109: SW135 | K109: 5A168 | L109: SW
A110: 5A169 | B110: CC | C110: TT | E110: GG | G110: TT | I110: R574 | J110: SW226 | K110: 5A169 | L110: SW
A111: 5A170 | B111: CC | C111: AA | E111: GG | G111: TT | I111: R575 | J111: SW118 | K111: 5A170 | L111: SW
A112: 5A171 | B112: CC | C112: AT | E112: GG | G112: TT | I112: R576 | J112: SW075 | K112: 5A171 | L112: SW
A113: 5A173 | B113: CC | C113: AA | E113: GG | G113: TT | I113: R577 | J113: SW209 | K113: 5A173 | L113: SW
A114: 5A175 | B114: CC | C114: TT | E114: GG | G114: TT | I114: R578 | J114: SW220 | K114: 5A175 | L114: SW
A115: 5A176 | B115: CC | C115: AA | E115: AG | G115: TT | I115: R579 | J115: SW095 | K115: 5A176 | L115: SW
A116: 5F001 | B116: CC | C116: TT | E116: GG | G116: TT | I116: R74 | J116: 3P002 | K116: 5F001 | L116: W
A117: 5F002 | B117: CC | C117: TT | E117: GG | G117: TT | I117: R75 | J117: 3P006 | K117: 5F002 | L117: W
A118: 5F003 | B118: GC | C118: TT | E118: GG | G118: TT | I118: R76 | J118: 3P018 | K118: 5F003 | L118: W
A119: 5F004 | B119: GC | C119: TT | E119: GG | G119: TT | I119: R580 | J119: 3P020 | K119: 5F004 | L119: W
A120: 5F005 | B120: CC | C120: TT | E120: GG | G120: TT | I120: R77 | J120: 3P021 | K120: 5F005 | L120: W
A121: 5F006 | B121: CC | C121: TT | E121: GG | G121: TT | I121: R78 | J121: 3P023 | K121: 5F006 | L121: W
A122: 5F007 | B122: GC | C122: TT | E122: GG | G122: TT | I122: R581 | J122: 3P025 | K122: 5F007 | L122: W
A123: 5F008 | B123: CC | C123: TT | E123: GG | G123: TT | I123: R79 | J123: 3P026 | K123: 5F008 | L123: W
A124: 5F009 | B124: CC | C124: TT | E124: GG | G124: TT | I124: R80 | J124: 3P027 | K124: 5F009 | L124: W
A125: 5F010 | B125: CC | C125: TT | E125: GG | G125: TT | I125: R81 | J125: 3P030 | K125: 5F010 | L125: W
A126: 5F011 | B126: CC | C126: TT | E126: GG | G126: TT | I126: R582 | J126: 3P033 | K126: 5F011 | L126: W
A127: 5F012 | B127: CC | C127: TT | E127: GG | G127: TT | I127: R82 | J127: 3P041 | K127: 5F012 | L127: W
A128: 5F013 | B128: CC | C128: TT | E128: GG | G128: TT | I128: R83 | J128: 3P042 | K128: 5F013 | L128: W
A129: 5F014 | B129: CC | C129: TT | E129: GG | G129: TT | I129: R84 | J129: 3P044 | K129: 5F014 | L129: W
A130: 5F015 | B130: CC | C130: TT | E130: AG | G130: TT | I130: R85 | J130: 3P046 | K130: 5F015 | L130: W
A131: 5F016 | B131: CC | C131: TT | E131: GG | G131: AT | I131: R583 | J131: 3P054 | K131: 5F016 | L131: S
A132: 5F017 | B132: CC | C132: AA | E132: GG | G132: TT | I132: R584 | J132: 3P061 | K132: 5F017 | L132: S
A133: 5F018 | B133: GC | C133: TT | E133: GG | G133: TT | I133: R585 | J133: 3P063 | K133: 5F018 | L133: S
A134: 5F019 | B134: CC | C134: TT | E134: AG | G134: TT | I134: R586 | J134: 3P065 | K134: 5F019 | L134: S
A135: 5F020 | B135: CC | C135: TT | E135: GG | G135: TT | I135: R587 | J135: 3P067 | K135: 5F020 | L135: S
A136: 5F021 | B136: CC | C136: TT | E136: GG | G136: TT | I136: R588 | J136: 3P068 | K136: 5F021 | L136: S
A137: 5F022 | B137: CC | C137: TT | E137: GG | G137: TT | I137: R589 | J137: 3P069 | K137: 5F022 | L137: S
A138: 5F023 | B138: CC | C138: TT | E138: GG | G138: TT | I138: R590 | J138: 3P072 | K138: 5F023 | L138: S
A139: 5F024 | B139: CC | C139: TT | E139: GG | G139: AT | I139: R591 | J139: 3P073 | K139: 5F024 | L139: S
A140: 5F025 | B140: CC | C140: TT | E140: GG | G140: TT | I140: R592 | J140: 3P075 | K140: 5F025 | L140: S
A141: 5F026 | B141: CC | C141: TT | E141: GG | G141: AT | I141: R593 | J141: 3P083 | K141: 5F026 | L141: S
A142: 5F027 | B142: CC | C142: TT | E142: GG | G142: TT | I142: R594 | J142: 3P087 | K142: 5F027 | L142: S
A143: 5F028 | B143: CC | C143: TT | E143: GG | G143: TT | I143: R595 | J143: 3P095 | K143: 5F028 | L143: S
A144: 5F029 | B144: CC | C144: TT | E144: GG | G144: AT | I144: R596 | J144: 3P096 | K144: 5F029 | L144: S
A145: 5F030 | B145: CC | C145: TT | E145: GG | G145: TT | I145: R597 | J145: 3P103 | K145: 5F030 | L145: S
A146: 5F031 | B146: CC | C146: AA | E146: GG | G146: TT | I146: R598 | J146: SW154 | K146: 5F031 | L146: SW
A147: 5F032 | B147: CC | C147: TT | E147: AG | G147: TT | I147: R599 | J147: SW214 | K147: 5F032 | L147: SW
A148: 5F033 | B148: CC | C148: TT | E148: AG | G148: TT | I148: R600 | J148: SW210 | K148: 5F033 | L148: SW
A149: 5F034 | B149: CC | C149: TT | E149: GG | G149: TT | I149: R601 | J149: SW153 | K149: 5F034 | L149: SW
A150: 5F035 | B150: GG | C150: TT | E150: GG | G150: TT | I150: R602 | J150: SW213 | K150: 5F035 | L150: SW
A151: 5F036 | B151: CC | C151: TT | E151: GG | G151: AT | I151: R603 | J151: SW160 | K151: 5F036 | L151: SW
A152: 5F037 | B152: GC | C152: TT | E152: GG | G152: TT | I152: R604 | J152: SW168 | K152: 5F037 | L152: SW
A153: 5F038 | B153: CC | C153: TT | E153: GG | G153: AT | I153: R605 | J153: SW159 | K153: 5F038 | L153: SW
A154: 5F039 | B154: CC | C154: TT | E154: GG | G154: TT | I154: R606 | J154: SW169 | K154: 5F039 | L154: SW
A155: 5F040 | B155: CC | C155: TT | E155: GG | G155: AT | I155: R607 | J155: SW235 | K155: 5F040 | L155: SW
A156: 5F041 | B156: CC | C156: AT | E156: GG | G156: TT | I156: R608 | J156: SW151 | K156: 5F041 | L156: SW
A157: 5F042 | B157: CC | C157: TT | E157: AG | G157: TT | I157: R609 | J157: SW012 | K157: 5F042 | L157: SW
A158: 5F043 | B158: CC | C158: TT | E158: GG | G158: TT | I158: R610 | J158: SW165 | K158: 5F043 | L158: SW

Sheet 芯片数据 (hidden)
A1: BMK ID | B1: 芯片编号 | C1: 样品名称（客户） | D1: Type
A2: R41 | B2: 3P001 | C2: 5A001 | D2: W
A3: R42 | B3: 3P005 | C3: 5A005 | D3: W
A4: R43 | B4: 3P008 | C4: 5A008 | D4: W
A5: R44 | B5: 3P010 | C5: 5A010 | D5: W
A6: R45 | B6: 3P011 | C6: 5A011 | D6: W
A7: R46 | B7: 3P012 | C7: 5A012 | D7: W
A8: R47 | B8: 3P013 | C8: 5A013 | D8: W
A9: R48 | B9: 3P014 | C9: 5A014 | D9: W
A10: R49 | B10: 3P015 | C10: 5A015 | D10: W
A11: R499 | B11: SW046 | C11: 5A130 | D11: SW
A12: R50 | B12: 3P017 | C12: 5A016 | D12: W
A13: R500 | B13: SW239 | C13: 5A132 | D13: SW
A14: R501 | B14: SW215 | C14: 5A133 | D14: SW
A15: R502 | B15: SW034 | C15: 5A134 | D15: SW
A16: R503 | B16: SW164 | C16: 5A135 | D16: SW
A17: R504 | B17: SW098 | C17: 5A137 | D17: SW
A18: R505 | B18: SW038 | C18: 5A138 | D18: SW
A19: R506 | B19: SW136 | C19: 5A140 | D19: SW
A20: R507 | B20: SW040 | C20: 5A141 | D20: SW
A21: R508 | B21: SW205 | C21: 5A142 | D21: SW
A22: R509 | B22: SW149 | C22: 5A143 | D22: SW
A23: R51 | B23: 3P019 | C23: 5A018 | D23: W
A24: R510 | B24: SW144 | C24: 5A146 | D24: SW
A25: R511 | B25: SW092 | C25: 5A149 | D25: SW
A26: R512 | B26: SW061 | C26: 5A150 | D26: SW
A27: R513 | B27: SW206 | C27: 5A153 | D27: SW
A28: R514 | B28: SW224 | C28: 5A154 | D28: SW
A29: R515 | B29: SW139 | C29: 5A156 | D29: SW
A30: R516 | B30: SW036 | C30: 5A157 | D30: SW
A31: R517 | B31: SW185 | C31: 5A158 | D31: SW
A32: R518 | B32: SW158 | C32: 5A159 | D32: SW
A33: R519 | B33: SW134 | C33: 5A160 | D33: SW
A34: R52 | B34: 3P028 | C34: 5A027 | D34: W
A35: R520 | B35: SW191 | C35: 5A161 | D35: SW
A36: R521 | B36: SW181 | C36: 5A162 | D36: SW
A37: R522 | B37: SW141 | C37: 5A163 | D37: SW
A38: R523 | B38: 3P003 | C38: 5A003 | D38: W
A39: R524 | B39: 3P004 | C39: 5A004 | D39: W
A40: R525 | B40: 3P007 | C40: 5A007 | D40: W
A41: R526 | B41: 3P009 | C41: 5A009 | D41: W
A42: R527 | B42: 3P022 | C42: 5A021 | D42: W
A43: R528 | B43: 3P024 | C43: 5A023 | D43: W
A44: R529 | B44: 3P055 | C44: 5A053 | D44: S
A45: R53 | B45: 3P029 | C45: 5A028 | D45: W
A46: R530 | B46: 3P056 | C46: 5A054 | D46: S
A47: R531 | B47: 3P057 | C47: 5A055 | D47: S
A48: R532 | B48: 3P058 | C48: 5A056 | D48: S
A49: R533 | B49: 3P059 | C49: 5A057 | D49: S
A50: R534 | B50: 3P060 | C50: 5A058 | D50: S
A51: R535 | B51: 3P062 | C51: 5A060 | D51: S
A52: R536 | B52: 3P064 | C52: 5A062 | D52: S
A53: R537 | B53: 3P066 | C53: 5A064 | D53: S
A54: R538 | B54: 3P070 | C54: 5A068 | D54: S
A55: R539 | B55: 3P071 | C55: 5A069 | D55: S
A56: R54 | B56: 3P031 | C56: 5A030 | D56: W
A57: R540 | B57: 3P074 | C57: 5A072 | D57: S
A58: R541 | B58: 3P076 | C58: 5A074 | D58: S
A59: R542 | B59: 3P077 | C59: 5A075 | D59: S
A60: R543 | B60: 3P078 | C60: 5A076 | D60: S
A61: R544 | B61: 3P079 | C61: 5A077 | D61: S
A62: R545 | B62: 3P080 | C62: 5A078 | D62: S
A63: R546 | B63: 3P081 | C63: 5A079 | D63: S
A64: R547 | B64: 3P082 | C64: 5A080 | D64: S
A65: R548 | B65: 3P084 | C65: 5A082 | D65: S
A66: R549 | B66: 3P085 | C66: 5A083 | D66: S
A67: R55 | B67: 3P032 | C67: 5A031 | D67: W
A68: R550 | B68: 3P086 | C68: 5A084 | D68: S
A69: R551 | B69: 3P088 | C69: 5A086 | D69: S
A70: R552 | B70: 3P089 | C70: 5A087 | D70: S
A71: R553 | B71: 3P090 | C71: 5A088 | D71: S
A72: R554 | B72: 3P091 | C72: 5A089 | D72: S
A73: R555 | B73: 3P092 | C73: 5A090 | D73: S
A74: R556 | B74: 3P093 | C74: 5A091 | D74: S
A75: R557 | B75: 3P097 | C75: 5A094 | D75: S
A76: R558 | B76: 3P098 | C76: 5A095 | D76: S
A77: R559 | B77: 3P099 | C77: 5A096 | D77: S
A78: R56 | B78: 3P035 | C78: 5A034 | D78: W
A79: R560 | B79: 3P100 | C79: 5A097 | D79: S
A80: R561 | B80: 3P101 | C80: 5A098 | D80: S
A81: R562 | B81: 3P102 | C81: 5A099 | D81: S
A82: R563 | B82: 3P104 | C82: 5A101 | D82: S
A83: R564 | B83: 3P105 | C83: 5A102 | D83: S
A84: R565 | B84: 3P106 | C84: 5A103 | D84: S
A85: R566 | B85: SW211 | C85: 5A125 | D85: SW
A86: R567 | B86: SW065 | C86: 5A126 | D86: SW
A87: R568 | B87: SW094 | C87: 5A127 | D87: SW
A88: R569 | B88: SW170 | C88: 5A128 | D88: SW
A89: R57 | B89: 3P036 | C89: 5A035 | D89: W
A90: R570 | B90: SW172 | C90: 5A129 | D90: SW
A91: R571 | B91: SW157 | C91: 5A165 | D91: SW
A92: R572 | B92: SW212 | C92: 5A166 | D92: SW
A93: R573 | B93: SW135 | C93: 5A168 | D93: SW
A94: R574 | B94: SW226 | C94: 5A169 | D94: SW
A95: R575 | B95: SW118 | C95: 5A170 | D95: SW
A96: R576 | B96: SW075 | C96: 5A171 | D96: SW
A97: R577 | B97: SW209 | C97: 5A173 | D97: SW
A98: R578 | B98: SW220 | C98: 5A175 | D98: SW
A99: R579 | B99: SW095 | C99: 5A176 | D99: SW
A100: R58 | B100: 3P037 | C100: 5A036 | D100: W
A101: R580 | B101: 3P020 | C101: 5F004 | D101: W
A102: R581 | B102: 3P025 | C102: 5F007 | D102: W
A103: R582 | B103: 3P033 | C103: 5F011 | D103: W
A104: R583 | B104: 3P054 | C104: 5F016 | D104: S
A105: R584 | B105: 3P061 | C105: 5F017 | D105: S
A106: R585 | B106: 3P063 | C106: 5F018 | D106: S
A107: R586 | B107: 3P065 | C107: 5F019 | D107: S
A108: R587 | B108: 3P067 | C108: 5F020 | D108: S
A109: R588 | B109: 3P068 | C109: 5F021 | D109: S
A110: R589 | B110: 3P069 | C110: 5F022 | D110: S
A111: R59 | B111: 3P038 | C111: 5A037 | D111: W
A112: R590 | B112: 3P072 | C112: 5F023 | D112: S
A113: R591 | B113: 3P073 | C113: 5F024 | D113: S
A114: R592 | B114: 3P075 | C114: 5F025 | D114: S
A115: R593 | B115: 3P083 | C115: 5F026 | D115: S
A116: R594 | B116: 3P087 | C116: 5F027 | D116: S
A117: R595 | B117: 3P095 | C117: 5F028 | D117: S
A118: R596 | B118: 3P096 | C118: 5F029 | D118: S
A119: R597 | B119: 3P103 | C119: 5F030 | D119: S
A120: R598 | B120: SW154 | C120: 5F031 | D120: SW
A121: R599 | B121: SW214 | C121: 5F032 | D121: SW
A122: R60 | B122: 3P039 | C122: 5A038 | D122: W
A123: R600 | B123: SW210 | C123: 5F033 | D123: SW
A124: R601 | B124: SW153 | C124: 5F034 | D124: SW
A125: R602 | B125: SW213 | C125: 5F035 | D125: SW
A126: R603 | B126: SW160 | C126: 5F036 | D126: SW
A127: R604 | B127: SW168 | C127: 5F037 | D127: SW
A128: R605 | B128: SW159 | C128: 5F038 | D128: SW
A129: R606 | B129: SW169 | C129: 5F039 | D129: SW
A130: R607 | B130: SW235 | C130: 5F040 | D130: SW
A131: R608 | B131: SW151 | C131: 5F041 | D131: SW
A132: R609 | B132: SW012 | C132: 5F042 | D132: SW
A133: R61 | B133: 3P034 | C133: 5A033 | D133: W
A134: R610 | B134: SW165 | C134: 5F043 | D134: SW
A135: R62 | B135: 3P040 | C135: 5A039 | D135: W
A136: R63 | B136: 3P043 | C136: 5A042 | D136: W
A137: R64 | B137: 3P045 | C137: 5A044 | D137: W
A138: R65 | B138: 3P048 | C138: 5A046 | D138: W
A139: R66 | B139: 3P049 | C139: 5A047 | D139: W
A140: R67 | B140: 3P050 | C140: 5A048 | D140: W
A141: R68 | B141: 3P051 | C141: 5A049 | D141: W
A142: R69 | B142: 3P052 | C142: 5A050 | D142: W
A143: R70 | B143: 3P053 | C143: 5A051 | D143: W
A144: R71 | B144: 3B019 | C144: 5A104 | D144: W
A145: R72 | B145: 3B060 | C145: 5A105 | D145: W
A146: R73 | B146: 3B062 | C146: 5A106 | D146: W
A147: R74 | B147: 3P002 | C147: 5F001 | D147: W
A148: R75 | B148: 3P006 | C148: 5F002 | D148: W
A149: R76 | B149: 3P018 | C149: 5F003 | D149: W
A150: R77 | B150: 3P021 | C150: 5F005 | D150: W
A151: R78 | B151: 3P023 | C151: 5F006 | D151: W
A152: R79 | B152: 3P026 | C152: 5F008 | D152: W
A153: R80 | B153: 3P027 | C153: 5F009 | D153: W
A154: R81 | B154: 3P030 | C154: 5F010 | D154: W
A155: R82 | B155: 3P041 | C155: 5F012 | D155: W
A156: R83 | B156: 3P042 | C156: 5F013 | D156: W
A157: R84 | B157: 3P044 | C157: 5F014 | D157: W
A158: R85 | B158: 3P046 | C158: 5F015 | D158: W

Sheet oliec用于比对 (hidden)
A1: TRAIT | B1: 2013 | C1: 2014 | D1: 2015
A2: SW012 | B2: 58.87581253 | C2: 40.15 | D2: 57.71611595
A3: SW034 | B3: 59.52818871 | C3: 31.73 | D3: 59.62270546
A4: SW036 | B4: 42.03808022 | C4: 44.79 | D4: 41.16582489
A5: SW038 | B5: 63.11366081 | C5: NA | D5: 57.70433807
A6: SW040 | B6: 65.18729019 | C6: 64.11 | D6: 61.11388588
A7: SW046 | B7: 27.05412102 | C7: 43.16 | D7: 31.7205019
A8: SW061 | B8: 63.70385742 | C8: 58.99 | D8: 58.79866982
A9: SW065 | B9: 27.38126087 | C9: 45.59 | D9: 31.85677719
A10: SW075 | B10: 65.17372513 | C10: 62.41 | D10: 57.20286751
A11: SW092 | B11: 60.58321953 | C11: NA | D11: 53.97756767
A12: SW094 | B12: 62.15970993 | C12: 58.48 | D12: 58.02482796
A13: SW095 | B13: 62.66095352 | C13: 63.34 | D13: 59.1795311
A14: SW098 | B14: 30.22343636 | C14: 41.41 | D14: 26.37034512
A15: SW118 | B15: NA | C15: NA | D15: NA
A16: SW134 | B16: 58.74041557 | C16: 59.01 | D16: 55.01919746
A17: SW135 | B17: 60.80885887 | C17: 63.12 | D17: 59.45800781
A18: SW136 | B18: 60.31285286 | C18: 59.72 | D18: 57.14429283
A19: SW139 | B19: 63.644104 | C19: 62.22 | D19: 55.2322998
A20: SW141 | B20: 61.70333481 | C20: 63.85 | D20: 59.94394302
A21: SW144 | B21: 60.31394196 | C21: 62.94 | D21: 55.56329346
A22: SW149 | B22: 62.27661896 | C22: 63.08 | D22: 54.82858086
A23: SW151 | B23: 64.29384422 | C23: 61.73 | D23: 60.19332314
A24: SW153 | B24: 61.19157219 | C24: 56.83 | D24: 55.50271988
A25: SW154 | B25: 64.79721832 | C25: 65.49 | D25: 64.40471458
A26: SW157 | B26: 64.37935257 | C26: 62.89 | D26: 61.66056061
A27: SW158 | B27: 61.58942032 | C27: 59.12 | D27: 55.28755951
A28: SW159 | B28: 61.85339737 | C28: 59.17 | D28: 56.47540283
A29: SW160 | B29: 64.97677612 | C29: 59.77 | D29: 56.78623772
A30: SW164 | B30: 61.15899277 | C30: 58.47 | D30: 56.28177261
A31: SW165 | B31: 59.63751984 | C31: 60.14 | D31: 52.28792763
A32: SW168 | B32: 60.02318192 | C32: 59.43 | D32: 55.15701675
A33: SW169 | B33: 62.36113548 | C33: 59.21 | D33: 56.3536911
A34: SW170 | B34: 65.91014099 | C34: 61.51 | D34: 63.43683624
A35: SW172 | B35: 57.80878448 | C35: 55.20 | D35: 52.82398224
A36: SW181 | B36: 67.12080956 | C36: 63.17 | D36: 50.34700584
A37: SW185 | B37: 58.80929947 | C37: 59.45 | D37: 62.47086143
A38: SW191 | B38: 66.96520615 | C38: 43.37 | D38: 54.83252907
A39: SW205 | B39: 58.07758331 | C39: 56.15 | D39: 56.13934517
A40: SW206 | B40: 60.66792679 | C40: 62.96 | D40: 62.59770393
A41: SW209 | B41: 56.21791649 | C41: 54.35 | D41: 53.99871826
A42: SW210 | B42: 59.77134132 | C42: 57.34 | D42: 57.60474014
A43: SW211 | B43: 64.44618607 | C43: 59.03 | D43: 47.95943642
A44: SW212 | B44: 58.05890274 | C44: 66.81 | D44: 50.99464989
A45: SW213 | B45: 60.46767235 | C45: 62.25 | D45: 57.45988274
A46: SW214 | B46: 62.45478249 | C46: 61.92 | D46: 61.57361031
A47: SW215 | B47: 58.21986961 | C47: 62.24 | D47: 63.37810516
A48: SW220 | B48: 58.43952942 | C48: 56.95 | D48: 58.08651924
A49: SW224 | B49: 60.60448265 | C49: 59.95 | D49: 56.50362968
A50: SW226 | B50: 64.93889809 | C50: 61.46 | D50: 59.40558243
A51: SW235 | B51: 63.15906715 | C51: 61.64 | D51: 62.62683487
A52: SW239 | B52: 67.82937622 | C52: 63.21 | D52: 58.52168465
